Workbook

Sheet Умная Т (hidden)
C1: Калужская область | D1: =SUM(Таблица1[Оплачено случаев]) -> 230433 | F1: =SUM(Таблица1[План ДВН, чел.]) -> 231210 | I1: Выполнение плана, % | J1: =ROUND(D1/F1,3) -> 0.997 | P1: =(K24+P24+U24+Z24+AE24+AJ24+AO24+AT24+AY24+BD24+BI24+BN24)/(J24+O24+T24+Y24+AD24+AI24+AN24+AS24+AX24++BC24+BH24+BM24)*1000 -> 2654.776053
C2: Средний тариф ДВН | D2: =P1 -> 2654.776053 | K2: ФАКТ | L2: ПЛАН | O2: ФАКТ | Q2: ПЛАН | T2: ФАКТ | V2: ПЛАН | Y2: ФАКТ | AA2: ПЛАН | AD2: ФАКТ | AF2: ПЛАН | AI2: ФАКТ | AK2: ПЛАН | AN2: ФАКТ | AP2: ПЛАН | AS2: ФАКТ | AU2: ПЛАН | AX2: ФАКТ | AZ2: ПЛАН | BC2: ФАКТ | BE2: ПЛАН | BH2: ФАКТ | BJ2: ПЛАН | BM2: ФАКТ | BO2: ПЛАН
A3: Месяц | B3: Вид | C3: Наименование медицинской организации | D3: Оплачено случаев | E3: Оплачено сумма, тыс.руб. | F3: План ДВН, чел. | G3: Отклонение | H3: % выполнения | J3: 1мес | K3: январь | L3: январь | M3: 2 мес | O3: Февраль | Q3: Февраль | R3: 3 мес | T3: Март | V3: Март | W3: 4 мес | Y3: Апрель | AA3: Апрель | AB3: 5 мес | AD3: Май | AF3: Май | AG3: 6 мес | AI3: Июнь | AK3: Июнь | AL3: 7 мес | AN3: Июль | AP3: Июль | AQ3: 8 мес | AS3: Август | AU3: Август | AV3: 9 мес | AX3: Сентябрь | AZ3: Сентябрь | BA3: 10 мес | BC3: Октябрь | BE3: Октябрь | BF3: 11 мес | BH3: Ноябрь | BJ3: Ноябрь | BK3: 12 мес | BM3: Декабрь | BO3: Декабрь
A4: Январь | B4: ДВН | C4: ЦМБ № 1 | D4: =J4 -> 4 | E4: =K4 -> 10.62435 | F4: =L4 -> 807 | G4: =Таблица1[[#This Row],[Оплачено случаев]]-Таблица1[[#This Row],[План ДВН, чел.]] -> -803 | H4: =ROUND(Таблица1[[#This Row],[Оплачено случаев]]/Таблица1[[#This Row],[План ДВН, чел.]]*100,1) -> 0.5 | J4: 4 | K4: 10.62435 | L4: 807 | M4: =J4+O4 -> 1514 | N4: =K4+P4 -> 3800.24745 | O4: 1510 | P4: 3789.6231 | Q4: 1030 | R4: =M4+T4 -> 2805 | S4: =N4+U4 -> 7050.10197 | T4: 1291 | U4: 3249.85452 | V4: 991 | W4: =R4+Y4 -> 4025 | X4: =S4+Z4 -> 10162.70197 | Y4: 1220 | Z4: 3112.6 | AA4: 1050 | AB4: =W4+AD4 -> 5303 | AC4: =X4+AE4 -> 13413.20408 | AD4: 1278 | AE4: 3250.50211 | AF4: 1020 | AG4: =AB4+AI4 -> 6324 | AH4: =AC4+AJ4 -> 16106.93413 | AI4: 1021 | AJ4: 2693.73005 | AK4: 1041 | AL4: =AG4+AN4 -> 7128 | AM4: =AH4+AO4 -> 18200.66643 | AN4: 804 | AO4: 2093.7323 | AP4: 996 | AQ4: =AL4+AS4 -> 7715 | AR4: =AM4+AT4 -> 19701.75419 | AS4: 587 | AT4: 1501.08776 | AU4: 1003 | AV4: =AX4+AQ4 -> 8305 | AW4: =AR4+AY4 -> 21228.56496 | AX4: 590 | AY4: 1526.81077 | AZ4: 980 | BA4: =AV4+BC4 -> 9037 | BB4: =AW4+BD4 -> 23050.83112 | BC4: 732 | BD4: 1822.26616 | BE4: 1064 | BF4: =BH4+BA4 -> 10034 | BG4: =BB4+BI4 -> 25770.69214 | BH4: 997 | BI4: 2719.86102 | BJ4: 1100 | BK4: =BF4+BM4 -> 10825 | BL4: =BG4+BN4 -> 27690.76404 | BM4: 791 | BN4: 1920.0719 | BO4: 0
A5: Январь | B5: ДВН | C5: ЦМБ № 2 | D5: =J5 -> 1838 | E5: =K5 -> 6435.30012 | F5: =L5 -> 1199 | G5: =Таблица1[[#This Row],[Оплачено случаев]]-Таблица1[[#This Row],[План ДВН, чел.]] -> 639 | H5: =ROUND(Таблица1[[#This Row],[Оплачено случаев]]/Таблица1[[#This Row],[План ДВН, чел.]]*100,1) -> 153.3 | J5: =1739+99 -> 1838 | K5: =6179.96012+255.34 -> 6435.30012 | L5: 1199 | M5: =J5+O5 -> 3938 | N5: 13477.80012 | O5: 2100 | P5: 7042.5 | Q5: 1354 | R5: =M5+T5 -> 5312 | S5: =N5+U5 -> 17762.20012 | T5: 1374 | U5: 4284.4 | V5: 1261 | W5: =R5+Y5 -> 5882 | X5: =S5+Z5 -> 19302.87012 | Y5: 570 | Z5: 1540.67 | AA5: 1279 | AB5: =W5+AD5 -> 6912 | AC5: =X5+AE5 -> 22650.74458 | AD5: 1030 | AE5: 3347.87446 | AF5: 1279 | AG5: =AB5+AI5 -> 8450 | AH5: =AC5+AJ5 -> 28182.55699 | AI5: 1538 | AJ5: 5531.81241 | AK5: 1269 | AL5: =AG5+AN5 -> 9995 | AM5: =AH5+AO5 -> 33637.87501 | AN5: 1545 | AO5: 5455.31802 | AP5: 1269 | AQ5: =AL5+AS5 -> 10671 | AR5: =AM5+AT5 -> 35536.84869 | AS5: 676 | AT5: 1898.97368 | AU5: 1269 | AV5: =AX5+AQ5 -> 11725 | AW5: =AR5+AY5 -> 39003.25634 | AX5: 1054 | AY5: 3466.40765 | AZ5: 1354 | BA5: =AV5+BC5 -> 12549 | BB5: =AW5+BD5 -> 41638.71218 | BC5: 824 | BD5: 2635.45584 | BE5: 1354 | BF5: =BH5+BA5 -> 14196 | BG5: =BB5+BI5 -> 47806.28675 | BH5: 1647 | BI5: 6167.57457 | BJ5: 1139 | BK5: =BF5+BM5 -> 14247 | BL5: =BG5+BN5 -> 47987.75342 | BM5: 51 | BN5: 181.46667 | BO5: 0
A6: Январь | B6: ДВН | C6: ЦМБ № 3 | D6: 292 | E6: 701.92683 | F6: 388 | G6: =Таблица1[[#This Row],[Оплачено случаев]]-Таблица1[[#This Row],[План ДВН, чел.]] -> -96 | H6: =ROUND(Таблица1[[#This Row],[Оплачено случаев]]/Таблица1[[#This Row],[План ДВН, чел.]]*100,1) -> 75.3 | J6: 292 | K6: 701.92683 | L6: 388 | M6: 921 | N6: 2228.59282 | O6: 629 | P6: 1526.66599 | Q6: 388 | R6: 1998 | S6: 4967.21975 | T6: 1077 | U6: 2738.62693 | V6: 766 | W6: 2770 | X6: 6913.51975 | Y6: 772 | Z6: 1946.3 | AA6: 766 | AB6: 3594 | AC6: 9013.28138 | AD6: 824 | AE6: 2099.76163 | AF6: 766 | AG6: 4278 | AH6: 10732.48882 | AI6: 684 | AJ6: 1719.20744 | AK6: 766 | AL6: 4830 | AM6: 12118.92449 | AN6: 552 | AO6: 1386.43567 | AP6: 766 | AQ6: 5339 | AR6: 13408.36591 | AS6: 509 | AT6: 1289.44142 | AU6: 766 | AV6: 5734 | AW6: 14386.12821 | AX6: 395 | AY6: 977.7623 | AZ6: 766 | BA6: 6085 | BB6: 15256.96202 | BC6: 351 | BD6: 870.83381 | BE6: 766 | BF6: 8438 | BG6: 21803.0999 | BH6: 2353 | BI6: 6546.13788 | BJ6: 745 | BK6: 8975 | BL6: 23149.96381 | BM6: 537 | BN6: 1346.86391 | BO6: 0
A7: Январь | B7: ДВН | C7: ЦМБ № 4 | D7: 213 | E7: 545.8974 | F7: 85 | G7: =Таблица1[[#This Row],[Оплачено случаев]]-Таблица1[[#This Row],[План ДВН, чел.]] -> 128 | H7: =ROUND(Таблица1[[#This Row],[Оплачено случаев]]/Таблица1[[#This Row],[План ДВН, чел.]]*100,1) -> 250.6 | J7: 213 | K7: 545.8974 | L7: 85 | M7: 566 | N7: 1469.08049 | O7: 353 | P7: 923.18309 | Q7: 332 | R7: 997 | S7: 2583.37931 | T7: 431 | U7: 1114.29882 | V7: 342 | W7: 1453 | X7: 3791.09687 | Y7: 456 | Z7: 1207.71756 | AA7: 404 | AB7: 1883 | AC7: 4958.92296 | AD7: 430 | AE7: 1167.82609 | AF7: 394 | AG7: 2134 | AH7: 5658.43033 | AI7: 251 | AJ7: 699.50737 | AK7: 414 | AL7: 2487 | AM7: 6583.78004 | AN7: 353 | AO7: 925.34971 | AP7: 404 | AQ7: 2760 | AR7: 7308.59914 | AS7: 273 | AT7: 724.8191 | AU7: 404 | AV7: 2994 | AW7: 7906.60182 | AX7: 234 | AY7: 598.00268 | AZ7: 414 | BA7: 3292 | BB7: 8648.86654 | BC7: 298 | BD7: 742.26472 | BE7: 408 | BF7: 3672 | BG7: 9640.13167 | BH7: 380 | BI7: 991.26513 | BJ7: 389 | BK7: 4011 | BL7: 10487.93507 | BM7: 339 | BN7: 847.8034 | BO7: 0
A8: Январь | B8: ДВН | C8: ЦМБ № 5 | D8: 524 | E8: 1327.52291 | F8: 367 | G8: =Таблица1[[#This Row],[Оплачено случаев]]-Таблица1[[#This Row],[План ДВН, чел.]] -> 157 | H8: =ROUND(Таблица1[[#This Row],[Оплачено случаев]]/Таблица1[[#This Row],[План ДВН, чел.]]*100,1) -> 142.8 | J8: 524 | K8: 1327.52291 | L8: 367 | M8: 1647 | N8: 4245.01598 | O8: 1123 | P8: 2917.49307 | Q8: 869 | R8: 2746 | S8: 7130.123 | T8: 1099 | U8: 2885.10702 | V8: 972 | W8: 3750 | X8: 9835.85486 | Y8: 1004 | Z8: 2705.73186 | AA8: 978 | AB8: 4550 | AC8: 12014.52673 | AD8: 800 | AE8: 2178.67187 | AF8: 839 | AG8: 5606 | AH8: 14798.36851 | AI8: 1056 | AJ8: 2783.84178 | AK8: 982 | AL8: 6378 | AM8: 16928.39406 | AN8: 772 | AO8: 2130.02555 | AP8: 910 | AQ8: 6966 | AR8: 18498.49412 | AS8: 588 | AT8: 1570.10006 | AU8: 925 | AV8: 7302 | AW8: 19395.9808 | AX8: 336 | AY8: 897.48668 | AZ8: 981 | BA8: 7777 | BB8: 20657.69776 | BC8: 475 | BD8: 1261.71696 | BE8: 985 | BF8: 8204 | BG8: 21804.34609 | BH8: 427 | BI8: 1146.64833 | BJ8: 937 | BK8: 8351 | BL8: 22397.1777 | BM8: 147 | BN8: 592.83161 | BO8: 0
A9: Январь | B9: ДВН | C9: ЦМБ № 6 | D9: 840 | E9: 2321.22793 | F9: 278 | G9: =Таблица1[[#This Row],[Оплачено случаев]]-Таблица1[[#This Row],[План ДВН, чел.]] -> 562 | H9: =ROUND(Таблица1[[#This Row],[Оплачено случаев]]/Таблица1[[#This Row],[План ДВН, чел.]]*100,1) -> 302.2 | J9: 840 | K9: 2321.22793 | L9: 278 | M9: 2614 | N9: 7309.5301 | O9: 1774 | P9: 4988.30217 | Q9: 1578 | R9: 4094 | S9: 11467.42286 | T9: 1480 | U9: 4157.89276 | V9: 1173 | W9: 5178 | X9: 14435.83209 | Y9: 1084 | Z9: 2968.40923 | AA9: 1410 | AB9: 6662 | AC9: 18600.29841 | AD9: 1484 | AE9: 4164.46632 | AF9: 698 | AG9: 7692 | AH9: 21454.57836 | AI9: 1030 | AJ9: 2854.27995 | AK9: 908 | AL9: 8657 | AM9: 24117.16063 | AN9: 965 | AO9: 2662.58227 | AP9: 1063 | AQ9: 9394 | AR9: 26202.22307 | AS9: 737 | AT9: 2085.06244 | AU9: 1574 | AV9: 10041 | AW9: 28046.3907 | AX9: 647 | AY9: 1844.16763 | AZ9: 1849 | BA9: 10997 | BB9: 30712.56559 | BC9: 956 | BD9: 2666.17489 | BE9: 1424 | BF9: 12664 | BG9: 36815.1544 | BH9: 1667 | BI9: 6102.58881 | BJ9: 1431 | BK9: 15099 | BL9: 42915.94759 | BM9: 2435 | BN9: 6100.79319 | BO9: 0
A10: Январь | B10: ДВН | C10: КГБ № 5 | D10: 3647 | E10: 9264.58111 | F10: 3349 | G10: =Таблица1[[#This Row],[Оплачено случаев]]-Таблица1[[#This Row],[План ДВН, чел.]] -> 298 | H10: =ROUND(Таблица1[[#This Row],[Оплачено случаев]]/Таблица1[[#This Row],[План ДВН, чел.]]*100,1) -> 108.9 | J10: 3647 | K10: 9264.58111 | L10: 3349 | M10: 7616 | N10: 19403.29183 | O10: 3969 | P10: 10138.71072 | Q10: 3766 | R10: 11520 | S10: 29384.59183 | T10: 3904 | U10: 9981.3 | V10: 3747 | W10: 15108 | X10: 38614.93694 | Y10: 3588 | Z10: 9230.34511 | AA10: 3747 | AB10: 18847 | AC10: 48292.02671 | AD10: 3739 | AE10: 9677.08977 | AF10: 3747 | AG10: 22430 | AH10: 57422.32502 | AI10: 3583 | AJ10: 9130.29831 | AK10: 3747 | AL10: 25279 | AM10: 64700.05344 | AN10: 2849 | AO10: 7277.72842 | AP10: 3747 | AQ10: 27749 | AR10: 71021.58402 | AS10: 2470 | AT10: 6321.53058 | AU10: 3747 | AV10: 30609 | AW10: 78120.03563 | AX10: 2860 | AY10: 7098.45161 | AZ10: 3747 | BA10: 31276 | BB10: 79734.49966 | BC10: 667 | BD10: 1614.46403 | BE10: 3747 | BF10: 35880 | BG10: 91847.77618 | BH10: 4604 | BI10: 12113.27652 | BJ10: 4909 | BK10: 36605 | BL10: 93393.56075 | BM10: 725 | BN10: 1545.78457 | BO10: 0
A11: Январь | B11: ДВН | C11: КГКБ № 4 | D11: 1954 | E11: 5261.15158 | F11: 3352 | G11: =Таблица1[[#This Row],[Оплачено случаев]]-Таблица1[[#This Row],[План ДВН, чел.]] -> -1398 | H11: =ROUND(Таблица1[[#This Row],[Оплачено случаев]]/Таблица1[[#This Row],[План ДВН, чел.]]*100,1) -> 58.3 | J11: 1954 | K11: 5261.15158 | L11: 3352 | M11: 4481 | N11: 12050.02106 | O11: 2527 | P11: 6788.86948 | Q11: 3352 | R11: 7395 | S11: 19831.6046 | T11: 2914 | U11: 7781.58354 | V11: 3352 | W11: 10171 | X11: 27324.4646 | Y11: 2776 | Z11: 7492.86 | AA11: 3352 | AB11: 12601 | AC11: 33914.62519 | AD11: 2430 | AE11: 6590.16059 | AF11: 3352 | AG11: 14795 | AH11: 39853.59566 | AI11: 2194 | AJ11: 5938.97047 | AK11: 3352 | AL11: 17691 | AM11: 47644.33985 | AN11: 2896 | AO11: 7790.74419 | AP11: 3352 | AQ11: 20778 | AR11: 55888.57985 | AS11: 3087 | AT11: 8244.24 | AU11: 3352 | AV11: 23409 | AW11: 62923.07757 | AX11: 2631 | AY11: 7034.49772 | AZ11: 3352 | BA11: 27499 | BB11: 73925.51484 | BC11: 4090 | BD11: 11002.43727 | BE11: 3352 | BF11: 31217 | BG11: 84034.2624 | BH11: 3718 | BI11: 10108.74756 | BJ11: 3692 | BK11: 35069 | BL11: 92421.32921 | BM11: 3852 | BN11: 8387.06681 | BO11: 0
A12: Январь | B12: ДВН | C12: Городская поликлиника | D12: 1449 | E12: 3599.40839 | F12: 1484 | G12: =Таблица1[[#This Row],[Оплачено случаев]]-Таблица1[[#This Row],[План ДВН, чел.]] -> -35 | H12: =ROUND(Таблица1[[#This Row],[Оплачено случаев]]/Таблица1[[#This Row],[План ДВН, чел.]]*100,1) -> 97.6 | J12: 1449 | K12: 3599.40839 | L12: 1484 | M12: 3185 | N12: 7982.95104 | O12: 1736 | P12: 4383.54265 | Q12: 1916 | R12: 4893 | S12: 12342.17176 | T12: 1708 | U12: 4359.22072 | V12: 1916 | W12: 6362 | X12: 16205.97644 | Y12: 1469 | Z12: 3863.80468 | AA12: 1781 | AB12: 7766 | AC12: 19925.87405 | AD12: 1404 | AE12: 3719.89761 | AF12: 1511 | AG12: 8961 | AH12: 23028.84724 | AI12: 1195 | AJ12: 3102.97319 | AK12: 1511 | AL12: 10216 | AM12: 26300.46209 | AN12: 1255 | AO12: 3271.61485 | AP12: 1511 | AQ12: 11044 | AR12: 28435.78649 | AS12: 828 | AT12: 2135.3244 | AU12: 1781 | AV12: 11817 | AW12: 30448.69514 | AX12: 773 | AY12: 2012.90865 | AZ12: 1781 | BA12: 13013 | BB12: 33463.33205 | BC12: 1196 | BD12: 3014.63691 | BE12: 1785 | BF12: 14223 | BG12: 36591.70345 | BH12: 1210 | BI12: 3128.3714 | BJ12: 1779 | BK12: 15688 | BL12: 39367.60913 | BM12: 1465 | BN12: 2775.90568 | BO12: 0
A13: Январь | B13: ДВН | C13: МСЧ № 1 г. Калуги | D13: 43 | E13: 87.61622 | F13: 106 | G13: =Таблица1[[#This Row],[Оплачено случаев]]-Таблица1[[#This Row],[План ДВН, чел.]] -> -63 | H13: =ROUND(Таблица1[[#This Row],[Оплачено случаев]]/Таблица1[[#This Row],[План ДВН, чел.]]*100,1) -> 40.6 | J13: 43 | K13: 87.61622 | L13: 106 | M13: 43 | N13: 89.21204 | O13: 0 | P13: 1.59582 | Q13: 106 | R13: 44 | S13: 91.56204 | T13: 1 | U13: 2.35 | V13: 106 | W13: 164 | X13: 354.88698 | Y13: 120 | Z13: 263.32494 | AA13: 106 | AB13: 528 | AC13: 1163.76042 | AD13: 364 | AE13: 808.87344 | AF13: 106 | AG13: 683 | AH13: 1536.92511 | AI13: 155 | AJ13: 373.16469 | AK13: 106 | AL13: 837 | AM13: 1871.44174 | AN13: 154 | AO13: 334.51663 | AP13: 106 | AQ13: 879 | AR13: 1968.96803 | AS13: 42 | AT13: 97.52629 | AU13: 106 | AV13: 881 | AW13: 1972.75724 | AX13: 2 | AY13: 3.78921 | AZ13: 106 | BA13: 913 | BB13: 2037.79797 | BC13: 32 | BD13: 65.04073 | BE13: 106 | BF13: 926 | BG13: 2067.82503 | BH13: 13 | BI13: 30.02706 | BJ13: 106 | BK13: 1000 | BL13: 2230.56335 | BM13: 74 | BN13: 162.73832 | BO13: 0
A14: Январь | B14: ДВН | C14: МСЧ № 2 г. Калуги | D14: 1 | E14: 2.69851 | F14: 12 | G14: =Таблица1[[#This Row],[Оплачено случаев]]-Таблица1[[#This Row],[План ДВН, чел.]] -> -11 | H14: =ROUND(Таблица1[[#This Row],[Оплачено случаев]]/Таблица1[[#This Row],[План ДВН, чел.]]*100,1) -> 8.3 | J14: 1 | K14: 2.69851 | L14: 12 | M14: 3 | N14: 7.7211 | O14: 2 | P14: 5.02259 | Q14: 12 | R14: 23 | S14: 58.4511 | T14: 20 | U14: 50.73 | V14: 12 | W14: 58 | X14: 148.01123 | Y14: 35 | Z14: 89.56013 | AA14: 12 | AB14: 81 | AC14: 207.80347 | AD14: 23 | AE14: 59.79224 | AF14: 12 | AG14: 83 | AH14: 212.63629 | AI14: 2 | AJ14: 4.83282 | AK14: 12 | AL14: 83 | AM14: 212.63629 | AO14: 0 | AP14: 12 | AQ14: 85 | AR14: 218.90396 | AS14: 2 | AT14: 6.26767 | AU14: 12 | AV14: 101 | AW14: 255.45326 | AX14: 16 | AY14: 36.5493 | AZ14: 12 | BA14: 112 | BB14: 280.00108 | BC14: 11 | BD14: 24.54782 | BE14: 12 | BF14: 122 | BG14: 307.07657 | BH14: 10 | BI14: 27.07549 | BJ14: 13 | BK14: 143 | BL14: 332.50304 | BM14: 21 | BN14: 25.42647 | BO14: 0
A15: Январь | B15: ДВН | C15: МСЧ МВД | D15: 0 | E15: 0 | F15: 5 | G15: =Таблица1[[#This Row],[Оплачено случаев]]-Таблица1[[#This Row],[План ДВН, чел.]] -> -5 | H15: =ROUND(Таблица1[[#This Row],[Оплачено случаев]]/Таблица1[[#This Row],[План ДВН, чел.]]*100,1) -> 0 | J15: 0 | L15: 5 | M15: 0 | N15: 0 | O15: 0 | Q15: 0 | R15: 0 | S15: 0 | V15: 0 | W15: 0 | X15: 0 | Z15: 0 | AA15: 0 | AB15: 2 | AC15: 6.91332 | AD15: 2 | AE15: 6.91332 | AF15: 0 | AG15: 4 | AH15: 10.72161 | AI15: 2 | AJ15: 3.80829 | AK15: 0 | AL15: 4 | AM15: 10.72161 | AO15: 0 | AP15: 0 | AQ15: 4 | AR15: 10.72161 | AT15: 0 | AU15: 0 | AV15: 4 | AW15: 10.72161 | AY15: 0 | AZ15: 0 | BA15: 4 | BB15: 10.72161 | BD15: 0 | BE15: 0 | BF15: 4 | BG15: 10.72161 | BI15: 0 | BJ15: 0 | BK15: 4 | BL15: 10.72161 | BN15: 0 | BO15: 0
A16: Январь | B16: ДВН | C16: ЧУЗ "Больница "РЖД - Медицина" | D16: 16 | E16: 36.13421 | F16: 10 | G16: =Таблица1[[#This Row],[Оплачено случаев]]-Таблица1[[#This Row],[План ДВН, чел.]] -> 6 | H16: =ROUND(Таблица1[[#This Row],[Оплачено случаев]]/Таблица1[[#This Row],[План ДВН, чел.]]*100,1) -> 160 | J16: 16 | K16: 36.13421 | L16: 10 | M16: 72 | N16: 165.59145 | O16: 56 | P16: 129.45724 | Q16: 95 | R16: 149 | S16: 354.209 | T16: 77 | U16: 188.61755 | V16: 134 | W16: 193 | X16: 473.1701 | Y16: 44 | Z16: 118.9611 | AA16: 100 | AB16: 225 | AC16: 543.00253 | AD16: 32 | AE16: 69.83243 | AF16: 115 | AG16: 527 | AH16: 1231.88226 | AI16: 302 | AJ16: 688.87973 | AK16: 125 | AL16: 606 | AM16: 1438.89299 | AN16: 79 | AO16: 207.01073 | AP16: 124 | AQ16: 757 | AR16: 1829.29012 | AS16: 151 | AT16: 390.39713 | AU16: 140 | AV16: 905 | AW16: 2198.26107 | AX16: 148 | AY16: 368.97095 | AZ16: 120 | BA16: 1402 | BB16: 3447.56328 | BC16: 497 | BD16: 1249.30221 | BE16: 130 | BF16: 2096 | BG16: 5195.57983 | BH16: 694 | BI16: 1748.01655 | BJ16: 115 | BK16: 2125 | BL16: 5279.11011 | BM16: 29 | BN16: 83.53028 | BO16: 0
A17: Январь | B17: ДВН | C17: КБ № 8 ФМБА | D17: 1321 | E17: 3227.67887 | F17: 3136 | G17: =Таблица1[[#This Row],[Оплачено случаев]]-Таблица1[[#This Row],[План ДВН, чел.]] -> -1815 | H17: =ROUND(Таблица1[[#This Row],[Оплачено случаев]]/Таблица1[[#This Row],[План ДВН, чел.]]*100,1) -> 42.1 | J17: 1321 | K17: 3227.67887 | L17: 3136 | M17: 2928 | N17: 7304.82721 | O17: 1607 | P17: 4077.14834 | Q17: 3136 | R17: 5511 | S17: 13735.32723 | T17: 2583 | U17: 6430.50002 | V17: 3136 | W17: 8285 | X17: 20639.44405 | Y17: 2774 | Z17: 6904.11682 | AA17: 3136 | AB17: 10325 | AC17: 25982.50388 | AD17: 2040 | AE17: 5343.05983 | AF17: 3137 | AG17: 13948 | AH17: 34907.38653 | AI17: 3623 | AJ17: 8924.88265 | AK17: 3137 | AL17: 17985 | AM17: 45054.884 | AN17: 4037 | AO17: 10147.49747 | AP17: 3137 | AQ17: 22046 | AR17: 55295.4681 | AS17: 4061 | AT17: 10240.5841 | AU17: 3137 | AV17: 26882 | AW17: 67120.17159 | AX17: 4836 | AY17: 11824.70349 | AZ17: 3137 | BA17: 31944 | BB17: 79182.88068 | BC17: 5062 | BD17: 12062.70909 | BE17: 3137 | BF17: 35839 | BG17: 88759.71909 | BH17: 3895 | BI17: 9576.83841 | BJ17: 4436 | BK17: 37009 | BL17: 91353.2596 | BM17: 1170 | BN17: 2593.54051 | BO17: 0
A18: Январь | B18: ДВН | C18: ЦРБ Бабынинского района | D18: 122 | E18: 319.07367 | F18: 249 | G18: =Таблица1[[#This Row],[Оплачено случаев]]-Таблица1[[#This Row],[План ДВН, чел.]] -> -127 | H18: =ROUND(Таблица1[[#This Row],[Оплачено случаев]]/Таблица1[[#This Row],[План ДВН, чел.]]*100,1) -> 49 | J18: 122 | K18: 319.07367 | L18: 249 | M18: 379 | N18: 953.82146 | O18: 257 | P18: 634.74779 | Q18: 373 | R18: 843 | S18: 2115.18082 | T18: 464 | U18: 1161.35936 | V18: 373 | W18: 1275 | X18: 3216.39015 | Y18: 432 | Z18: 1101.20933 | AA18: 373 | AB18: 1710 | AC18: 4395.14425 | AD18: 435 | AE18: 1178.7541 | AF18: 373 | AG18: 1756 | AH18: 4516.57352 | AI18: 46 | AJ18: 121.42927 | AK18: 373 | AL18: 2267 | AM18: 5835.1305 | AN18: 511 | AO18: 1318.55698 | AP18: 373 | AQ18: 2585 | AR18: 6639.00212 | AS18: 318 | AT18: 803.87162 | AU18: 373 | AV18: 2984 | AW18: 7689.06051 | AX18: 399 | AY18: 1050.05839 | AZ18: 373 | BA18: 3023 | BB18: 7792.824 | BC18: 39 | BD18: 103.76349 | BE18: 373 | BF18: 3297 | BG18: 8531.36257 | BH18: 274 | BI18: 738.53857 | BJ18: 374 | BK18: 4134 | BL18: 10789.89671 | BM18: 837 | BN18: 2258.53414 | BO18: 0
A19: Январь | B19: ДВН | C19: ЦРБ Боровского района | D19: 1308 | E19: 3620.8045 | F19: 275 | G19: =Таблица1[[#This Row],[Оплачено случаев]]-Таблица1[[#This Row],[План ДВН, чел.]] -> 1033 | H19: =ROUND(Таблица1[[#This Row],[Оплачено случаев]]/Таблица1[[#This Row],[План ДВН, чел.]]*100,1) -> 475.6 | J19: 1308 | K19: 3620.8045 | L19: 275 | M19: 2669 | N19: 7567.02815 | O19: 1361 | P19: 3946.22365 | Q19: 1477 | R19: 4036 | S19: 11840.75214 | T19: 1367 | U19: 4273.72399 | V19: 1477 | W19: 4365 | X19: 12730.21358 | Y19: 329 | Z19: 889.46144 | AA19: 1477 | AB19: 6264 | AC19: 19262.08806 | AD19: 1899 | AE19: 6531.87448 | AF19: 955 | AG19: 7399 | AH19: 22533.81849 | AI19: 1135 | AJ19: 3271.73043 | AK19: 1223 | AL19: 8225 | AM19: 24974.31351 | AN19: 826 | AO19: 2440.49502 | AP19: 955 | AQ19: 8786 | AR19: 26605.48268 | AS19: 561 | AT19: 1631.16917 | AU19: 955 | AV19: 9724 | AW19: 29296.77461 | AX19: 938 | AY19: 2691.29193 | AZ19: 1477 | BA19: 10445 | BB19: 31242.8753 | BC19: 721 | BD19: 1946.10069 | BE19: 1477 | BF19: 12279 | BG19: 36434.40649 | BH19: 1834 | BI19: 5191.53119 | BJ19: 1216 | BK19: 14200 | BL19: 41991.56441 | BM19: 1921 | BN19: 5557.15792 | BO19: 0
A20: Январь | B20: ДВН | C20: ЦРБ Жуковского района | D20: 772 | E20: 1996.82774 | F20: 477 | G20: =Таблица1[[#This Row],[Оплачено случаев]]-Таблица1[[#This Row],[План ДВН, чел.]] -> 295 | H20: =ROUND(Таблица1[[#This Row],[Оплачено случаев]]/Таблица1[[#This Row],[План ДВН, чел.]]*100,1) -> 161.8 | J20: 772 | K20: 1996.82774 | L20: 477 | M20: 1156 | N20: 2957.81814 | O20: 384 | P20: 960.9904 | Q20: 477 | R20: 1509 | S20: 3872.09859 | T20: 353 | U20: 914.28045 | V20: 480 | W20: 2012 | X20: 5144.01655 | Y20: 503 | Z20: 1271.91796 | AA20: 477 | AB20: 2398 | AC20: 6110.38688 | AD20: 386 | AE20: 966.37033 | AF20: 477 | AG20: 2750 | AH20: 7021.61956 | AI20: 352 | AJ20: 911.23268 | AK20: 477 | AL20: 3221 | AM20: 8305.19379 | AN20: 471 | AO20: 1283.57423 | AP20: 477 | AQ20: 3610 | AR20: 9327.45339 | AS20: 389 | AT20: 1022.2596 | AU20: 477 | AV20: 3946 | AW20: 10251.69239 | AX20: 336 | AY20: 924.239 | AZ20: 477 | BA20: 4526 | BB20: 11881.9998 | BC20: 580 | BD20: 1630.30741 | BE20: 477 | BF20: 6643 | BG20: 17906.94582 | BH20: 2117 | BI20: 6024.94602 | BJ20: 477 | BK20: 7815 | BL20: 21311.73424 | BM20: 1172 | BN20: 3404.78842 | BO20: 0
A21: Январь | B21: ДВН | C21: ГП "Город Кременки" | D21: 152 | E21: 409.19686 | F21: 166 | G21: =Таблица1[[#This Row],[Оплачено случаев]]-Таблица1[[#This Row],[План ДВН, чел.]] -> -14 | H21: =ROUND(Таблица1[[#This Row],[Оплачено случаев]]/Таблица1[[#This Row],[План ДВН, чел.]]*100,1) -> 91.6 | J21: 152 | K21: 409.19686 | L21: 166 | M21: 316 | N21: 860.34029 | O21: 164 | P21: 451.14343 | Q21: 166 | R21: 471 | S21: 1286.88799 | T21: 155 | U21: 426.5477 | V21: 166 | W21: 638 | X21: 1764.22823 | Y21: 167 | Z21: 477.34024 | AA21: 166 | AB21: 785 | AC21: 2168.24452 | AD21: 147 | AE21: 404.01629 | AF21: 166 | AG21: 973 | AH21: 2656.89069 | AI21: 188 | AJ21: 488.64617 | AK21: 166 | AL21: 1136 | AM21: 3059.60218 | AN21: 163 | AO21: 402.71149 | AP21: 166 | AQ21: 1248 | AR21: 3366.34216 | AS21: 112 | AT21: 306.73998 | AU21: 166 | AV21: 1372 | AW21: 3695.75818 | AX21: 124 | AY21: 329.41602 | AZ21: 166 | BA21: 1679 | BB21: 4506.54452 | BC21: 307 | BD21: 810.78634 | BE21: 166 | BF21: 1829 | BG21: 4888.05664 | BH21: 150 | BI21: 381.51212 | BJ21: 167 | BK21: 2030 | BL21: 5238.32118 | BM21: 201 | BN21: 350.26454 | BO21: 0
A22: Январь | B22: ДВН | C22: ЦРБ Малоярославецкого района | D22: 550 | E22: 1394.03067 | F22: 100 | G22: =Таблица1[[#This Row],[Оплачено случаев]]-Таблица1[[#This Row],[План ДВН, чел.]] -> 450 | H22: =ROUND(Таблица1[[#This Row],[Оплачено случаев]]/Таблица1[[#This Row],[План ДВН, чел.]]*100,1) -> 550 | J22: 550 | K22: 1394.03067 | L22: 100 | M22: 1378 | N22: 3531.06269 | O22: 828 | P22: 2137.03202 | Q22: 846 | R22: 2206 | S22: 5613.64424 | T22: 828 | U22: 2082.58155 | V22: 846 | W22: 3030 | X22: 7735.10679 | Y22: 824 | Z22: 2121.46255 | AA22: 846 | AB22: 3910 | AC22: 9950.87622 | AD22: 880 | AE22: 2215.76943 | AF22: 846 | AG22: 4600 | AH22: 11747.84542 | AI22: 690 | AJ22: 1796.9692 | AK22: 846 | AL22: 5091 | AM22: 13000.02755 | AN22: 491 | AO22: 1252.18213 | AP22: 846 | AQ22: 5738 | AR22: 14701.66438 | AS22: 647 | AT22: 1701.63683 | AU22: 846 | AV22: 6463 | AW22: 16546.94752 | AX22: 725 | AY22: 1845.28314 | AZ22: 846 | BA22: 7126 | BB22: 18198.95653 | BC22: 663 | BD22: 1652.00901 | BE22: 846 | BF22: 9497 | BG22: 24244.86071 | BH22: 2371 | BI22: 6045.90418 | BJ22: 886 | BK22: 10581 | BL22: 27276.54562 | BM22: 1084 | BN22: 3031.68491 | BO22: 0
A23: Январь | B23: ДВН | C23: ЦРБ Тарусского района | D23: 245 | E23: 588.53289 | F23: 176 | G23: =Таблица1[[#This Row],[Оплачено случаев]]-Таблица1[[#This Row],[План ДВН, чел.]] -> 69 | H23: =ROUND(Таблица1[[#This Row],[Оплачено случаев]]/Таблица1[[#This Row],[План ДВН, чел.]]*100,1) -> 139.2 | J23: 245 | K23: 588.53289 | L23: 176 | M23: 356 | N23: 863.93577 | O23: 111 | P23: 275.40288 | Q23: 200 | R23: 619 | S23: 1529.39429 | T23: 263 | U23: 665.45852 | V23: 305 | W23: 903 | X23: 2223.8183 | Y23: 284 | Z23: 694.42401 | AA23: 243 | AB23: 1119 | AC23: 2765.13081 | AD23: 216 | AE23: 541.31251 | AF23: 297 | AG23: 1457 | AH23: 3535.70603 | AI23: 338 | AJ23: 770.57522 | AK23: 149 | AL23: 1543 | AM23: 3744.23259 | AN23: 86 | AO23: 208.52656 | AP23: 134 | AQ23: 1678 | AR23: 4060.97385 | AS23: 135 | AT23: 316.74126 | AU23: 128 | AV23: 1825 | AW23: 4458.41816 | AX23: 147 | AY23: 397.44431 | AZ23: 233 | BA23: 1999 | BB23: 4880.05867 | BC23: 174 | BD23: 421.64051 | BE23: 299 | BF23: 2197 | BG23: 5377.31674 | BH23: 198 | BI23: 497.25807 | BJ23: 265 | BK23: 2522 | BL23: 6121.74974 | BM23: 325 | BN23: 744.433 | BO23: 0
A24: Февраль | B24: ДВН | C24: ЦМБ № 1 | D24: =O4 -> 1510 | E24: =P4 -> 3789.6231 | F24: =Q4 -> 1030 | G24: =Таблица1[[#This Row],[Оплачено случаев]]-Таблица1[[#This Row],[План ДВН, чел.]] -> 480 | H24: =ROUND(Таблица1[[#This Row],[Оплачено случаев]]/Таблица1[[#This Row],[План ДВН, чел.]]*100,1) -> 146.6 | J24: =SUM(J4:J23) -> 15291 | K24: 41150.23476 | L24: 16021 | M24: 35782 | N24: 96267.88919 | O24: 20491 | P24: 55117.65443 | Q24: 21473 | R24: 57171 | S24: 153016.3226 | T24: 21389 | U24: 56748.43345 | V24: 21555 | W24: 75622 | X24: 201016.5396 | Y24: 18451 | Z24: 48000.21696 | AA24: 21703 | AB24: 95465 | AC24: 255339.3585 | AD24: 19843 | AE24: 54322.81885 | AF24: 20090 | AG24: 114850 | AH24: 307150.1306 | AI24: 19385 | AJ24: 51810.77212 | AK24: 20604 | AL24: 133659 | AM24: 357738.7328 | AN24: 18809 | AO24: 50588.60222 | AP24: =SUM(AP4:AP23) -> 20348 | AQ24: =SUM(AQ4:AQ23) -> 149832 | AR24: 400026.5059 | AS24: 16173 | AT24: 42287.77309 | AU24: 21161 | AV24: 167023 | AW24: 444954.7473 | AX24: 17191 | AY24: 44928.24143 | AZ24: 22171 | BA24: 184698 | BB24: 490551.2052 | BC24: 17675 | BD24: 45596.45789 | BE24: 21908 | BF24: 213257 | BG24: 569837.3241 | BH24: 28559 | BI24: 79286.11888 | BJ24: 24176 | BK24: 230433 | BL24: 611748.0103 | BM24: 17176 | BN24: 41910.68625 | BO24: 0
A25: Февраль | B25: ДВН | C25: ЦМБ № 2 | D25: 2100 | E25: 7042.5 | F25: 1354 | G25: =Таблица1[[#This Row],[Оплачено случаев]]-Таблица1[[#This Row],[План ДВН, чел.]] -> 746 | H25: =ROUND(Таблица1[[#This Row],[Оплачено случаев]]/Таблица1[[#This Row],[План ДВН, чел.]]*100,1) -> 155.1
A26: Февраль | B26: ДВН | C26: ЦМБ № 3 | D26: 629 | E26: 1526.66599 | F26: 388 | G26: =Таблица1[[#This Row],[Оплачено случаев]]-Таблица1[[#This Row],[План ДВН, чел.]] -> 241 | H26: =ROUND(Таблица1[[#This Row],[Оплачено случаев]]/Таблица1[[#This Row],[План ДВН, чел.]]*100,1) -> 162.1
A27: Февраль | B27: ДВН | C27: ЦМБ № 4 | D27: 353 | E27: 923.18309 | F27: 332 | G27: =Таблица1[[#This Row],[Оплачено случаев]]-Таблица1[[#This Row],[План ДВН, чел.]] -> 21 | H27: =ROUND(Таблица1[[#This Row],[Оплачено случаев]]/Таблица1[[#This Row],[План ДВН, чел.]]*100,1) -> 106.3
A28: Февраль | B28: ДВН | C28: ЦМБ № 5 | D28: 1123 | E28: 2917.49307 | F28: 869 | G28: =Таблица1[[#This Row],[Оплачено случаев]]-Таблица1[[#This Row],[План ДВН, чел.]] -> 254 | H28: =ROUND(Таблица1[[#This Row],[Оплачено случаев]]/Таблица1[[#This Row],[План ДВН, чел.]]*100,1) -> 129.2
A29: Февраль | B29: ДВН | C29: ЦМБ № 6 | D29: 1774 | E29: 4988.30217 | F29: 1578 | G29: =Таблица1[[#This Row],[Оплачено случаев]]-Таблица1[[#This Row],[План ДВН, чел.]] -> 196 | H29: =ROUND(Таблица1[[#This Row],[Оплачено случаев]]/Таблица1[[#This Row],[План ДВН, чел.]]*100,1) -> 112.4
A30: Февраль | B30: ДВН | C30: КГБ № 5 | D30: 3969 | E30: 10138.71072 | F30: 3766 | G30: =Таблица1[[#This Row],[Оплачено случаев]]-Таблица1[[#This Row],[План ДВН, чел.]] -> 203 | H30: =ROUND(Таблица1[[#This Row],[Оплачено случаев]]/Таблица1[[#This Row],[План ДВН, чел.]]*100,1) -> 105.4
A31: Февраль | B31: ДВН | C31: КГКБ № 4 | D31: 2527 | E31: 6788.86948 | F31: 3352 | G31: =Таблица1[[#This Row],[Оплачено случаев]]-Таблица1[[#This Row],[План ДВН, чел.]] -> -825 | H31: =ROUND(Таблица1[[#This Row],[Оплачено случаев]]/Таблица1[[#This Row],[План ДВН, чел.]]*100,1) -> 75.4
A32: Февраль | B32: ДВН | C32: Городская поликлиника | D32: 1736 | E32: 4383.54265 | F32: 1916 | G32: =Таблица1[[#This Row],[Оплачено случаев]]-Таблица1[[#This Row],[План ДВН, чел.]] -> -180 | H32: =ROUND(Таблица1[[#This Row],[Оплачено случаев]]/Таблица1[[#This Row],[План ДВН, чел.]]*100,1) -> 90.6
A33: Февраль | B33: ДВН | C33: МСЧ № 1 г. Калуги | D33: 0 | E33: 1.59582 | F33: 106 | G33: =Таблица1[[#This Row],[Оплачено случаев]]-Таблица1[[#This Row],[План ДВН, чел.]] -> -106 | H33: =ROUND(Таблица1[[#This Row],[Оплачено случаев]]/Таблица1[[#This Row],[План ДВН, чел.]]*100,1) -> 0
A34: Февраль | B34: ДВН | C34: МСЧ № 2 г. Калуги | D34: 2 | E34: 5.02259 | F34: 12 | G34: =Таблица1[[#This Row],[Оплачено случаев]]-Таблица1[[#This Row],[План ДВН, чел.]] -> -10 | H34: =ROUND(Таблица1[[#This Row],[Оплачено случаев]]/Таблица1[[#This Row],[План ДВН, чел.]]*100,1) -> 16.7
A35: Февраль | B35: ДВН | C35: МСЧ МВД | D35: 0 | E35: 0 | F35: 0 | G35: =Таблица1[[#This Row],[Оплачено случаев]]-Таблица1[[#This Row],[План ДВН, чел.]] -> 0 | H35: =ROUND(Таблица1[[#This Row],[Оплачено случаев]]/Таблица1[[#This Row],[План ДВН, чел.]]*100,1) -> 
A36: Февраль | B36: ДВН | C36: ЧУЗ "Больница "РЖД - Медицина" | D36: 56 | E36: 129.45724 | F36: 95 | G36: =Таблица1[[#This Row],[Оплачено случаев]]-Таблица1[[#This Row],[План ДВН, чел.]] -> -39 | H36: =ROUND(Таблица1[[#This Row],[Оплачено случаев]]/Таблица1[[#This Row],[План ДВН, чел.]]*100,1) -> 58.9
A37: Февраль | B37: ДВН | C37: КБ № 8 ФМБА | D37: 1607 | E37: 4077.14834 | F37: 3136 | G37: =Таблица1[[#This Row],[Оплачено случаев]]-Таблица1[[#This Row],[План ДВН, чел.]] -> -1529 | H37: =ROUND(Таблица1[[#This Row],[Оплачено случаев]]/Таблица1[[#This Row],[План ДВН, чел.]]*100,1) -> 51.2
A38: Февраль | B38: ДВН | C38: ЦРБ Бабынинского района | D38: 257 | E38: 634.74779 | F38: 373 | G38: =Таблица1[[#This Row],[Оплачено случаев]]-Таблица1[[#This Row],[План ДВН, чел.]] -> -116 | H38: =ROUND(Таблица1[[#This Row],[Оплачено случаев]]/Таблица1[[#This Row],[План ДВН, чел.]]*100,1) -> 68.9
A39: Февраль | B39: ДВН | C39: ЦРБ Боровского района | D39: 1361 | E39: 3946.22365 | F39: 1477 | G39: =Таблица1[[#This Row],[Оплачено случаев]]-Таблица1[[#This Row],[План ДВН, чел.]] -> -116 | H39: =ROUND(Таблица1[[#This Row],[Оплачено случаев]]/Таблица1[[#This Row],[План ДВН, чел.]]*100,1) -> 92.1
A40: Февраль | B40: ДВН | C40: ЦРБ Жуковского района | D40: 384 | E40: 960.9904 | F40: 477 | G40: =Таблица1[[#This Row],[Оплачено случаев]]-Таблица1[[#This Row],[План ДВН, чел.]] -> -93 | H40: =ROUND(Таблица1[[#This Row],[Оплачено случаев]]/Таблица1[[#This Row],[План ДВН, чел.]]*100,1) -> 80.5
A41: Февраль | B41: ДВН | C41: ГП "Город Кременки" | D41: 164 | E41: 451.14343 | F41: 166 | G41: =Таблица1[[#This Row],[Оплачено случаев]]-Таблица1[[#This Row],[План ДВН, чел.]] -> -2 | H41: =ROUND(Таблица1[[#This Row],[Оплачено случаев]]/Таблица1[[#This Row],[План ДВН, чел.]]*100,1) -> 98.8
A42: Февраль | B42: ДВН | C42: ЦРБ Малоярославецкого района | D42: 828 | E42: 2137.03202 | F42: 846 | G42: =Таблица1[[#This Row],[Оплачено случаев]]-Таблица1[[#This Row],[План ДВН, чел.]] -> -18 | H42: =ROUND(Таблица1[[#This Row],[Оплачено случаев]]/Таблица1[[#This Row],[План ДВН, чел.]]*100,1) -> 97.9
A43: Февраль | B43: ДВН | C43: ЦРБ Тарусского района | D43: 111 | E43: 275.40288 | F43: 200 | G43: =Таблица1[[#This Row],[Оплачено случаев]]-Таблица1[[#This Row],[План ДВН, чел.]] -> -89 | H43: =ROUND(Таблица1[[#This Row],[Оплачено случаев]]/Таблица1[[#This Row],[План ДВН, чел.]]*100,1) -> 55.5
A44: Март | B44: ДВН | C44: ЦМБ № 1 | D44: =T4 -> 1291 | E44: =U4 -> 3249.85452 | F44: =V4 -> 991 | G44: =Таблица1[[#This Row],[Оплачено случаев]]-Таблица1[[#This Row],[План ДВН, чел.]] -> 300 | H44: =ROUND(Таблица1[[#This Row],[Оплачено случаев]]/Таблица1[[#This Row],[План ДВН, чел.]]*100,1) -> 130.3
A45: Март | B45: ДВН | C45: ЦМБ № 2 | D45: 1374 | E45: 4284.4 | F45: 1261 | G45: =Таблица1[[#This Row],[Оплачено случаев]]-Таблица1[[#This Row],[План ДВН, чел.]] -> 113 | H45: =ROUND(Таблица1[[#This Row],[Оплачено случаев]]/Таблица1[[#This Row],[План ДВН, чел.]]*100,1) -> 109
A46: Март | B46: ДВН | C46: ЦМБ № 3 | D46: 1077 | E46: 2738.62693 | F46: 766 | G46: =Таблица1[[#This Row],[Оплачено случаев]]-Таблица1[[#This Row],[План ДВН, чел.]] -> 311 | H46: =ROUND(Таблица1[[#This Row],[Оплачено случаев]]/Таблица1[[#This Row],[План ДВН, чел.]]*100,1) -> 140.6
A47: Март | B47: ДВН | C47: ЦМБ № 4 | D47: 431 | E47: 1114.29882 | F47: 342 | G47: =Таблица1[[#This Row],[Оплачено случаев]]-Таблица1[[#This Row],[План ДВН, чел.]] -> 89 | H47: =ROUND(Таблица1[[#This Row],[Оплачено случаев]]/Таблица1[[#This Row],[План ДВН, чел.]]*100,1) -> 126
A48: Март | B48: ДВН | C48: ЦМБ № 5 | D48: 1099 | E48: 2885.10702 | F48: 972 | G48: =Таблица1[[#This Row],[Оплачено случаев]]-Таблица1[[#This Row],[План ДВН, чел.]] -> 127 | H48: =ROUND(Таблица1[[#This Row],[Оплачено случаев]]/Таблица1[[#This Row],[План ДВН, чел.]]*100,1) -> 113.1
A49: Март | B49: ДВН | C49: ЦМБ № 6 | D49: 1480 | E49: 4157.89276 | F49: 1173 | G49: =Таблица1[[#This Row],[Оплачено случаев]]-Таблица1[[#This Row],[План ДВН, чел.]] -> 307 | H49: =ROUND(Таблица1[[#This Row],[Оплачено случаев]]/Таблица1[[#This Row],[План ДВН, чел.]]*100,1) -> 126.2
A50: Март | B50: ДВН | C50: КГБ № 5 | D50: 3904 | E50: 9981.3 | F50: 3747 | G50: =Таблица1[[#This Row],[Оплачено случаев]]-Таблица1[[#This Row],[План ДВН, чел.]] -> 157 | H50: =ROUND(Таблица1[[#This Row],[Оплачено случаев]]/Таблица1[[#This Row],[План ДВН, чел.]]*100,1) -> 104.2
A51: Март | B51: ДВН | C51: КГКБ № 4 | D51: 2914 | E51: 7781.58354 | F51: 3352 | G51: =Таблица1[[#This Row],[Оплачено случаев]]-Таблица1[[#This Row],[План ДВН, чел.]] -> -438 | H51: =ROUND(Таблица1[[#This Row],[Оплачено случаев]]/Таблица1[[#This Row],[План ДВН, чел.]]*100,1) -> 86.9
A52: Март | B52: ДВН | C52: Городская поликлиника | D52: 1708 | E52: 4359.22072 | F52: 1916 | G52: =Таблица1[[#This Row],[Оплачено случаев]]-Таблица1[[#This Row],[План ДВН, чел.]] -> -208 | H52: =ROUND(Таблица1[[#This Row],[Оплачено случаев]]/Таблица1[[#This Row],[План ДВН, чел.]]*100,1) -> 89.1
A53: Март | B53: ДВН | C53: МСЧ № 1 г. Калуги | D53: 1 | E53: 2.35 | F53: 106 | G53: =Таблица1[[#This Row],[Оплачено случаев]]-Таблица1[[#This Row],[План ДВН, чел.]] -> -105 | H53: =ROUND(Таблица1[[#This Row],[Оплачено случаев]]/Таблица1[[#This Row],[План ДВН, чел.]]*100,1) -> 0.9
A54: Март | B54: ДВН | C54: МСЧ № 2 г. Калуги | D54: 20 | E54: 50.73 | F54: 12 | G54: =Таблица1[[#This Row],[Оплачено случаев]]-Таблица1[[#This Row],[План ДВН, чел.]] -> 8 | H54: =ROUND(Таблица1[[#This Row],[Оплачено случаев]]/Таблица1[[#This Row],[План ДВН, чел.]]*100,1) -> 166.7
A55: Март | B55: ДВН | C55: МСЧ МВД | D55: 0 | E55: 0 | F55: 0 | G55: =Таблица1[[#This Row],[Оплачено случаев]]-Таблица1[[#This Row],[План ДВН, чел.]] -> 0 | H55: =ROUND(Таблица1[[#This Row],[Оплачено случаев]]/Таблица1[[#This Row],[План ДВН, чел.]]*100,1) -> 
A56: Март | B56: ДВН | C56: ЧУЗ "Больница "РЖД - Медицина" | D56: 77 | E56: 188.61755 | F56: 134 | G56: =Таблица1[[#This Row],[Оплачено случаев]]-Таблица1[[#This Row],[План ДВН, чел.]] -> -57 | H56: =ROUND(Таблица1[[#This Row],[Оплачено случаев]]/Таблица1[[#This Row],[План ДВН, чел.]]*100,1) -> 57.5
A57: Март | B57: ДВН | C57: КБ № 8 ФМБА | D57: 2583 | E57: 6430.50002 | F57: 3136 | G57: =Таблица1[[#This Row],[Оплачено случаев]]-Таблица1[[#This Row],[План ДВН, чел.]] -> -553 | H57: =ROUND(Таблица1[[#This Row],[Оплачено случаев]]/Таблица1[[#This Row],[План ДВН, чел.]]*100,1) -> 82.4
A58: Март | B58: ДВН | C58: ЦРБ Бабынинского района | D58: 464 | E58: 1161.35936 | F58: 373 | G58: =Таблица1[[#This Row],[Оплачено случаев]]-Таблица1[[#This Row],[План ДВН, чел.]] -> 91 | H58: =ROUND(Таблица1[[#This Row],[Оплачено случаев]]/Таблица1[[#This Row],[План ДВН, чел.]]*100,1) -> 124.4
A59: Март | B59: ДВН | C59: ЦРБ Боровского района | D59: 1367 | E59: 4273.72399 | F59: 1477 | G59: =Таблица1[[#This Row],[Оплачено случаев]]-Таблица1[[#This Row],[План ДВН, чел.]] -> -110 | H59: =ROUND(Таблица1[[#This Row],[Оплачено случаев]]/Таблица1[[#This Row],[План ДВН, чел.]]*100,1) -> 92.6
A60: Март | B60: ДВН | C60: ЦРБ Жуковского района | D60: 353 | E60: 914.28045 | F60: 480 | G60: =Таблица1[[#This Row],[Оплачено случаев]]-Таблица1[[#This Row],[План ДВН, чел.]] -> -127 | H60: =ROUND(Таблица1[[#This Row],[Оплачено случаев]]/Таблица1[[#This Row],[План ДВН, чел.]]*100,1) -> 73.5
A61: Март | B61: ДВН | C61: ГП "Город Кременки" | D61: 155 | E61: 426.5477 | F61: 166 | G61: =Таблица1[[#This Row],[Оплачено случаев]]-Таблица1[[#This Row],[План ДВН, чел.]] -> -11 | H61: =ROUND(Таблица1[[#This Row],[Оплачено случаев]]/Таблица1[[#This Row],[План ДВН, чел.]]*100,1) -> 93.4
A62: Март | B62: ДВН | C62: ЦРБ Малоярославецкого района | D62: 828 | E62: 2082.58155 | F62: 846 | G62: =Таблица1[[#This Row],[Оплачено случаев]]-Таблица1[[#This Row],[План ДВН, чел.]] -> -18 | H62: =ROUND(Таблица1[[#This Row],[Оплачено случаев]]/Таблица1[[#This Row],[План ДВН, чел.]]*100,1) -> 97.9
A63: Март | B63: ДВН | C63: ЦРБ Тарусского района | D63: 263 | E63: 665.45852 | F63: 305 | G63: =Таблица1[[#This Row],[Оплачено случаев]]-Таблица1[[#This Row],[План ДВН, чел.]] -> -42 | H63: =ROUND(Таблица1[[#This Row],[Оплачено случаев]]/Таблица1[[#This Row],[План ДВН, чел.]]*100,1) -> 86.2
A64: Апрель | B64: ДВН | C64: ЦМБ № 1 | D64: =Y4 -> 1220 | E64: =Z4 -> 3112.6 | F64: =AA4 -> 1050 | G64: =Таблица1[[#This Row],[Оплачено случаев]]-Таблица1[[#This Row],[План ДВН, чел.]] -> 170 | H64: =ROUND(Таблица1[[#This Row],[Оплачено случаев]]/Таблица1[[#This Row],[План ДВН, чел.]]*100,1) -> 116.2
A65: Апрель | B65: ДВН | C65: ЦМБ № 2 | D65: 570 | E65: 1540.67 | F65: 1279 | G65: =Таблица1[[#This Row],[Оплачено случаев]]-Таблица1[[#This Row],[План ДВН, чел.]] -> -709 | H65: =ROUND(Таблица1[[#This Row],[Оплачено случаев]]/Таблица1[[#This Row],[План ДВН, чел.]]*100,1) -> 44.6
A66: Апрель | B66: ДВН | C66: ЦМБ № 3 | D66: 772 | E66: 1946.3 | F66: 766 | G66: =Таблица1[[#This Row],[Оплачено случаев]]-Таблица1[[#This Row],[План ДВН, чел.]] -> 6 | H66: =ROUND(Таблица1[[#This Row],[Оплачено случаев]]/Таблица1[[#This Row],[План ДВН, чел.]]*100,1) -> 100.8
A67: Апрель | B67: ДВН | C67: ЦМБ № 4 | D67: 456 | E67: 1207.71756 | F67: 404 | G67: =Таблица1[[#This Row],[Оплачено случаев]]-Таблица1[[#This Row],[План ДВН, чел.]] -> 52 | H67: =ROUND(Таблица1[[#This Row],[Оплачено случаев]]/Таблица1[[#This Row],[План ДВН, чел.]]*100,1) -> 112.9
A68: Апрель | B68: ДВН | C68: ЦМБ № 5 | D68: 1004 | E68: 2705.73186 | F68: 978 | G68: =Таблица1[[#This Row],[Оплачено случаев]]-Таблица1[[#This Row],[План ДВН, чел.]] -> 26 | H68: =ROUND(Таблица1[[#This Row],[Оплачено случаев]]/Таблица1[[#This Row],[План ДВН, чел.]]*100,1) -> 102.7
A69: Апрель | B69: ДВН | C69: ЦМБ № 6 | D69: 1084 | E69: 2968.40923 | F69: 1410 | G69: =Таблица1[[#This Row],[Оплачено случаев]]-Таблица1[[#This Row],[План ДВН, чел.]] -> -326 | H69: =ROUND(Таблица1[[#This Row],[Оплачено случаев]]/Таблица1[[#This Row],[План ДВН, чел.]]*100,1) -> 76.9
A70: Апрель | B70: ДВН | C70: КГБ № 5 | D70: 3588 | E70: 9230.34511 | F70: 3747 | G70: =Таблица1[[#This Row],[Оплачено случаев]]-Таблица1[[#This Row],[План ДВН, чел.]] -> -159 | H70: =ROUND(Таблица1[[#This Row],[Оплачено случаев]]/Таблица1[[#This Row],[План ДВН, чел.]]*100,1) -> 95.8
A71: Апрель | B71: ДВН | C71: КГКБ № 4 | D71: 2776 | E71: 7492.86 | F71: 3352 | G71: =Таблица1[[#This Row],[Оплачено случаев]]-Таблица1[[#This Row],[План ДВН, чел.]] -> -576 | H71: =ROUND(Таблица1[[#This Row],[Оплачено случаев]]/Таблица1[[#This Row],[План ДВН, чел.]]*100,1) -> 82.8
A72: Апрель | B72: ДВН | C72: Городская поликлиника | D72: 1469 | E72: 3863.80468 | F72: 1781 | G72: =Таблица1[[#This Row],[Оплачено случаев]]-Таблица1[[#This Row],[План ДВН, чел.]] -> -312 | H72: =ROUND(Таблица1[[#This Row],[Оплачено случаев]]/Таблица1[[#This Row],[План ДВН, чел.]]*100,1) -> 82.5
A73: Апрель | B73: ДВН | C73: МСЧ № 1 г. Калуги | D73: 120 | E73: 263.32494 | F73: 106 | G73: =Таблица1[[#This Row],[Оплачено случаев]]-Таблица1[[#This Row],[План ДВН, чел.]] -> 14 | H73: =ROUND(Таблица1[[#This Row],[Оплачено случаев]]/Таблица1[[#This Row],[План ДВН, чел.]]*100,1) -> 113.2
A74: Апрель | B74: ДВН | C74: МСЧ № 2 г. Калуги | D74: 35 | E74: 89.56013 | F74: 12 | G74: =Таблица1[[#This Row],[Оплачено случаев]]-Таблица1[[#This Row],[План ДВН, чел.]] -> 23 | H74: =ROUND(Таблица1[[#This Row],[Оплачено случаев]]/Таблица1[[#This Row],[План ДВН, чел.]]*100,1) -> 291.7
A75: Апрель | B75: ДВН | C75: МСЧ МВД | D75: 0 | E75: 0 | F75: 0 | G75: =Таблица1[[#This Row],[Оплачено случаев]]-Таблица1[[#This Row],[План ДВН, чел.]] -> 0 | H75: =ROUND(Таблица1[[#This Row],[Оплачено случаев]]/Таблица1[[#This Row],[План ДВН, чел.]]*100,1) -> 
A76: Апрель | B76: ДВН | C76: ЧУЗ "Больница "РЖД - Медицина" | D76: 44 | E76: 118.9611 | F76: 100 | G76: =Таблица1[[#This Row],[Оплачено случаев]]-Таблица1[[#This Row],[План ДВН, чел.]] -> -56 | H76: =ROUND(Таблица1[[#This Row],[Оплачено случаев]]/Таблица1[[#This Row],[План ДВН, чел.]]*100,1) -> 44
A77: Апрель | B77: ДВН | C77: КБ № 8 ФМБА | D77: 2774 | E77: 6904.11682 | F77: 3136 | G77: =Таблица1[[#This Row],[Оплачено случаев]]-Таблица1[[#This Row],[План ДВН, чел.]] -> -362 | H77: =ROUND(Таблица1[[#This Row],[Оплачено случаев]]/Таблица1[[#This Row],[План ДВН, чел.]]*100,1) -> 88.5
A78: Апрель | B78: ДВН | C78: ЦРБ Бабынинского района | D78: 432 | E78: 1101.20933 | F78: 373 | G78: =Таблица1[[#This Row],[Оплачено случаев]]-Таблица1[[#This Row],[План ДВН, чел.]] -> 59 | H78: =ROUND(Таблица1[[#This Row],[Оплачено случаев]]/Таблица1[[#This Row],[План ДВН, чел.]]*100,1) -> 115.8
A79: Апрель | B79: ДВН | C79: ЦРБ Боровского района | D79: 329 | E79: 889.46144 | F79: 1477 | G79: =Таблица1[[#This Row],[Оплачено случаев]]-Таблица1[[#This Row],[План ДВН, чел.]] -> -1148 | H79: =ROUND(Таблица1[[#This Row],[Оплачено случаев]]/Таблица1[[#This Row],[План ДВН, чел.]]*100,1) -> 22.3
A80: Апрель | B80: ДВН | C80: ЦРБ Жуковского района | D80: 503 | E80: 1271.91796 | F80: 477 | G80: =Таблица1[[#This Row],[Оплачено случаев]]-Таблица1[[#This Row],[План ДВН, чел.]] -> 26 | H80: =ROUND(Таблица1[[#This Row],[Оплачено случаев]]/Таблица1[[#This Row],[План ДВН, чел.]]*100,1) -> 105.5
A81: Апрель | B81: ДВН | C81: ГП "Город Кременки" | D81: 167 | E81: 477.34024 | F81: 166 | G81: =Таблица1[[#This Row],[Оплачено случаев]]-Таблица1[[#This Row],[План ДВН, чел.]] -> 1 | H81: =ROUND(Таблица1[[#This Row],[Оплачено случаев]]/Таблица1[[#This Row],[План ДВН, чел.]]*100,1) -> 100.6
A82: Апрель | B82: ДВН | C82: ЦРБ Малоярославецкого района | D82: 824 | E82: 2121.46255 | F82: 846 | G82: =Таблица1[[#This Row],[Оплачено случаев]]-Таблица1[[#This Row],[План ДВН, чел.]] -> -22 | H82: =ROUND(Таблица1[[#This Row],[Оплачено случаев]]/Таблица1[[#This Row],[План ДВН, чел.]]*100,1) -> 97.4
A83: Апрель | B83: ДВН | C83: ЦРБ Тарусского района | D83: 284 | E83: 694.42401 | F83: 243 | G83: =Таблица1[[#This Row],[Оплачено случаев]]-Таблица1[[#This Row],[План ДВН, чел.]] -> 41 | H83: =ROUND(Таблица1[[#This Row],[Оплачено случаев]]/Таблица1[[#This Row],[План ДВН, чел.]]*100,1) -> 116.9
A84: Май | B84: ДВН | C84: ЦМБ № 1 | D84: =AD4 -> 1278 | E84: =AE4 -> 3250.50211 | F84: =AF4 -> 1020 | G84: =Таблица1[[#This Row],[Оплачено случаев]]-Таблица1[[#This Row],[План ДВН, чел.]] -> 258 | H84: =ROUND(Таблица1[[#This Row],[Оплачено случаев]]/Таблица1[[#This Row],[План ДВН, чел.]]*100,1) -> 125.3
A85: Май | B85: ДВН | C85: ЦМБ № 2 | D85: 1030 | E85: 3347.87446 | F85: 1279 | G85: =Таблица1[[#This Row],[Оплачено случаев]]-Таблица1[[#This Row],[План ДВН, чел.]] -> -249 | H85: =ROUND(Таблица1[[#This Row],[Оплачено случаев]]/Таблица1[[#This Row],[План ДВН, чел.]]*100,1) -> 80.5
A86: Май | B86: ДВН | C86: ЦМБ № 3 | D86: 824 | E86: 2099.76163 | F86: 766 | G86: =Таблица1[[#This Row],[Оплачено случаев]]-Таблица1[[#This Row],[План ДВН, чел.]] -> 58 | H86: =ROUND(Таблица1[[#This Row],[Оплачено случаев]]/Таблица1[[#This Row],[План ДВН, чел.]]*100,1) -> 107.6
A87: Май | B87: ДВН | C87: ЦМБ № 4 | D87: 430 | E87: 1167.82609 | F87: 394 | G87: =Таблица1[[#This Row],[Оплачено случаев]]-Таблица1[[#This Row],[План ДВН, чел.]] -> 36 | H87: =ROUND(Таблица1[[#This Row],[Оплачено случаев]]/Таблица1[[#This Row],[План ДВН, чел.]]*100,1) -> 109.1
A88: Май | B88: ДВН | C88: ЦМБ № 5 | D88: 800 | E88: 2178.67187 | F88: 839 | G88: =Таблица1[[#This Row],[Оплачено случаев]]-Таблица1[[#This Row],[План ДВН, чел.]] -> -39 | H88: =ROUND(Таблица1[[#This Row],[Оплачено случаев]]/Таблица1[[#This Row],[План ДВН, чел.]]*100,1) -> 95.4
A89: Май | B89: ДВН | C89: ЦМБ № 6 | D89: 1484 | E89: 4164.46632 | F89: 698 | G89: =Таблица1[[#This Row],[Оплачено случаев]]-Таблица1[[#This Row],[План ДВН, чел.]] -> 786 | H89: =ROUND(Таблица1[[#This Row],[Оплачено случаев]]/Таблица1[[#This Row],[План ДВН, чел.]]*100,1) -> 212.6
A90: Май | B90: ДВН | C90: КГБ № 5 | D90: 3739 | E90: 9677.08977 | F90: 3747 | G90: =Таблица1[[#This Row],[Оплачено случаев]]-Таблица1[[#This Row],[План ДВН, чел.]] -> -8 | H90: =ROUND(Таблица1[[#This Row],[Оплачено случаев]]/Таблица1[[#This Row],[План ДВН, чел.]]*100,1) -> 99.8
A91: Май | B91: ДВН | C91: КГКБ № 4 | D91: 2430 | E91: 6590.16059 | F91: 3352 | G91: =Таблица1[[#This Row],[Оплачено случаев]]-Таблица1[[#This Row],[План ДВН, чел.]] -> -922 | H91: =ROUND(Таблица1[[#This Row],[Оплачено случаев]]/Таблица1[[#This Row],[План ДВН, чел.]]*100,1) -> 72.5
A92: Май | B92: ДВН | C92: Городская поликлиника | D92: 1404 | E92: 3719.89761 | F92: 1511 | G92: =Таблица1[[#This Row],[Оплачено случаев]]-Таблица1[[#This Row],[План ДВН, чел.]] -> -107 | H92: =ROUND(Таблица1[[#This Row],[Оплачено случаев]]/Таблица1[[#This Row],[План ДВН, чел.]]*100,1) -> 92.9
A93: Май | B93: ДВН | C93: МСЧ № 1 г. Калуги | D93: 364 | E93: 808.87344 | F93: 106 | G93: =Таблица1[[#This Row],[Оплачено случаев]]-Таблица1[[#This Row],[План ДВН, чел.]] -> 258 | H93: =ROUND(Таблица1[[#This Row],[Оплачено случаев]]/Таблица1[[#This Row],[План ДВН, чел.]]*100,1) -> 343.4
A94: Май | B94: ДВН | C94: МСЧ № 2 г. Калуги | D94: 23 | E94: 59.79224 | F94: 12 | G94: =Таблица1[[#This Row],[Оплачено случаев]]-Таблица1[[#This Row],[План ДВН, чел.]] -> 11 | H94: =ROUND(Таблица1[[#This Row],[Оплачено случаев]]/Таблица1[[#This Row],[План ДВН, чел.]]*100,1) -> 191.7
A95: Май | B95: ДВН | C95: МСЧ МВД | D95: 2 | E95: 6.91332 | F95: 0 | G95: =Таблица1[[#This Row],[Оплачено случаев]]-Таблица1[[#This Row],[План ДВН, чел.]] -> 2 | H95: =ROUND(Таблица1[[#This Row],[Оплачено случаев]]/Таблица1[[#This Row],[План ДВН, чел.]]*100,1) -> 
A96: Май | B96: ДВН | C96: ЧУЗ "Больница "РЖД - Медицина" | D96: 32 | E96: 69.83243 | F96: 115 | G96: =Таблица1[[#This Row],[Оплачено случаев]]-Таблица1[[#This Row],[План ДВН, чел.]] -> -83 | H96: =ROUND(Таблица1[[#This Row],[Оплачено случаев]]/Таблица1[[#This Row],[План ДВН, чел.]]*100,1) -> 27.8
A97: Май | B97: ДВН | C97: КБ № 8 ФМБА | D97: 2040 | E97: 5343.05983 | F97: 3137 | G97: =Таблица1[[#This Row],[Оплачено случаев]]-Таблица1[[#This Row],[План ДВН, чел.]] -> -1097 | H97: =ROUND(Таблица1[[#This Row],[Оплачено случаев]]/Таблица1[[#This Row],[План ДВН, чел.]]*100,1) -> 65
A98: Май | B98: ДВН | C98: ЦРБ Бабынинского района | D98: 435 | E98: 1178.7541 | F98: 373 | G98: =Таблица1[[#This Row],[Оплачено случаев]]-Таблица1[[#This Row],[План ДВН, чел.]] -> 62 | H98: =ROUND(Таблица1[[#This Row],[Оплачено случаев]]/Таблица1[[#This Row],[План ДВН, чел.]]*100,1) -> 116.6
A99: Май | B99: ДВН | C99: ЦРБ Боровского района | D99: 1899 | E99: 6531.87448 | F99: 955 | G99: =Таблица1[[#This Row],[Оплачено случаев]]-Таблица1[[#This Row],[План ДВН, чел.]] -> 944 | H99: =ROUND(Таблица1[[#This Row],[Оплачено случаев]]/Таблица1[[#This Row],[План ДВН, чел.]]*100,1) -> 198.8
A100: Май | B100: ДВН | C100: ЦРБ Жуковского района | D100: 386 | E100: 966.37033 | F100: 477 | G100: =Таблица1[[#This Row],[Оплачено случаев]]-Таблица1[[#This Row],[План ДВН, чел.]] -> -91 | H100: =ROUND(Таблица1[[#This Row],[Оплачено случаев]]/Таблица1[[#This Row],[План ДВН, чел.]]*100,1) -> 80.9
A101: Май | B101: ДВН | C101: ГП "Город Кременки" | D101: 147 | E101: 404.01629 | F101: 166 | G101: =Таблица1[[#This Row],[Оплачено случаев]]-Таблица1[[#This Row],[План ДВН, чел.]] -> -19 | H101: =ROUND(Таблица1[[#This Row],[Оплачено случаев]]/Таблица1[[#This Row],[План ДВН, чел.]]*100,1) -> 88.6
A102: Май | B102: ДВН | C102: ЦРБ Малоярославецкого района | D102: 880 | E102: 2215.76943 | F102: 846 | G102: =Таблица1[[#This Row],[Оплачено случаев]]-Таблица1[[#This Row],[План ДВН, чел.]] -> 34 | H102: =ROUND(Таблица1[[#This Row],[Оплачено случаев]]/Таблица1[[#This Row],[План ДВН, чел.]]*100,1) -> 104
A103: Май | B103: ДВН | C103: ЦРБ Тарусского района | D103: 216 | E103: 541.31251 | F103: 297 | G103: =Таблица1[[#This Row],[Оплачено случаев]]-Таблица1[[#This Row],[План ДВН, чел.]] -> -81 | H103: =ROUND(Таблица1[[#This Row],[Оплачено случаев]]/Таблица1[[#This Row],[План ДВН, чел.]]*100,1) -> 72.7
A104: Июнь | B104: ДВН | C104: ЦМБ № 1 | D104: =AI4 -> 1021 | E104: =AJ4 -> 2693.73005 | F104: =AK4 -> 1041 | G104: =Таблица1[[#This Row],[Оплачено случаев]]-Таблица1[[#This Row],[План ДВН, чел.]] -> -20 | H104: =ROUND(Таблица1[[#This Row],[Оплачено случаев]]/Таблица1[[#This Row],[План ДВН, чел.]]*100,1) -> 98.1
A105: Июнь | B105: ДВН | C105: ЦМБ № 2 | D105: 1538 | E105: 5531.81241 | F105: 1269 | G105: =Таблица1[[#This Row],[Оплачено случаев]]-Таблица1[[#This Row],[План ДВН, чел.]] -> 269 | H105: =ROUND(Таблица1[[#This Row],[Оплачено случаев]]/Таблица1[[#This Row],[План ДВН, чел.]]*100,1) -> 121.2
A106: Июнь | B106: ДВН | C106: ЦМБ № 3 | D106: 684 | E106: 1719.20744 | F106: 766 | G106: =Таблица1[[#This Row],[Оплачено случаев]]-Таблица1[[#This Row],[План ДВН, чел.]] -> -82 | H106: =ROUND(Таблица1[[#This Row],[Оплачено случаев]]/Таблица1[[#This Row],[План ДВН, чел.]]*100,1) -> 89.3
A107: Июнь | B107: ДВН | C107: ЦМБ № 4 | D107: 251 | E107: 699.50737 | F107: 414 | G107: =Таблица1[[#This Row],[Оплачено случаев]]-Таблица1[[#This Row],[План ДВН, чел.]] -> -163 | H107: =ROUND(Таблица1[[#This Row],[Оплачено случаев]]/Таблица1[[#This Row],[План ДВН, чел.]]*100,1) -> 60.6
A108: Июнь | B108: ДВН | C108: ЦМБ № 5 | D108: 1056 | E108: 2783.84178 | F108: 982 | G108: =Таблица1[[#This Row],[Оплачено случаев]]-Таблица1[[#This Row],[План ДВН, чел.]] -> 74 | H108: =ROUND(Таблица1[[#This Row],[Оплачено случаев]]/Таблица1[[#This Row],[План ДВН, чел.]]*100,1) -> 107.5
A109: Июнь | B109: ДВН | C109: ЦМБ № 6 | D109: 1030 | E109: 2854.27995 | F109: 908 | G109: =Таблица1[[#This Row],[Оплачено случаев]]-Таблица1[[#This Row],[План ДВН, чел.]] -> 122 | H109: =ROUND(Таблица1[[#This Row],[Оплачено случаев]]/Таблица1[[#This Row],[План ДВН, чел.]]*100,1) -> 113.4
A110: Июнь | B110: ДВН | C110: КГБ № 5 | D110: 3583 | E110: 9130.29831 | F110: 3747 | G110: =Таблица1[[#This Row],[Оплачено случаев]]-Таблица1[[#This Row],[План ДВН, чел.]] -> -164 | H110: =ROUND(Таблица1[[#This Row],[Оплачено случаев]]/Таблица1[[#This Row],[План ДВН, чел.]]*100,1) -> 95.6
A111: Июнь | B111: ДВН | C111: КГКБ № 4 | D111: 2194 | E111: 5938.97047 | F111: 3352 | G111: =Таблица1[[#This Row],[Оплачено случаев]]-Таблица1[[#This Row],[План ДВН, чел.]] -> -1158 | H111: =ROUND(Таблица1[[#This Row],[Оплачено случаев]]/Таблица1[[#This Row],[План ДВН, чел.]]*100,1) -> 65.5
A112: Июнь | B112: ДВН | C112: Городская поликлиника | D112: 1195 | E112: 3102.97319 | F112: 1511 | G112: =Таблица1[[#This Row],[Оплачено случаев]]-Таблица1[[#This Row],[План ДВН, чел.]] -> -316 | H112: =ROUND(Таблица1[[#This Row],[Оплачено случаев]]/Таблица1[[#This Row],[План ДВН, чел.]]*100,1) -> 79.1
A113: Июнь | B113: ДВН | C113: МСЧ № 1 г. Калуги | D113: 155 | E113: 373.16469 | F113: 106 | G113: =Таблица1[[#This Row],[Оплачено случаев]]-Таблица1[[#This Row],[План ДВН, чел.]] -> 49 | H113: =ROUND(Таблица1[[#This Row],[Оплачено случаев]]/Таблица1[[#This Row],[План ДВН, чел.]]*100,1) -> 146.2
A114: Июнь | B114: ДВН | C114: МСЧ № 2 г. Калуги | D114: 2 | E114: 4.83282 | F114: 12 | G114: =Таблица1[[#This Row],[Оплачено случаев]]-Таблица1[[#This Row],[План ДВН, чел.]] -> -10 | H114: =ROUND(Таблица1[[#This Row],[Оплачено случаев]]/Таблица1[[#This Row],[План ДВН, чел.]]*100,1) -> 16.7
A115: Июнь | B115: ДВН | C115: МСЧ МВД | D115: 2 | E115: 3.80829 | F115: 0 | G115: =Таблица1[[#This Row],[Оплачено случаев]]-Таблица1[[#This Row],[План ДВН, чел.]] -> 2 | H115: =ROUND(Таблица1[[#This Row],[Оплачено случаев]]/Таблица1[[#This Row],[План ДВН, чел.]]*100,1) -> 
A116: Июнь | B116: ДВН | C116: ЧУЗ "Больница "РЖД - Медицина" | D116: 302 | E116: 688.87973 | F116: 125 | G116: =Таблица1[[#This Row],[Оплачено случаев]]-Таблица1[[#This Row],[План ДВН, чел.]] -> 177 | H116: =ROUND(Таблица1[[#This Row],[Оплачено случаев]]/Таблица1[[#This Row],[План ДВН, чел.]]*100,1) -> 241.6
A117: Июнь | B117: ДВН | C117: КБ № 8 ФМБА | D117: 3623 | E117: 8924.88265 | F117: 3137 | G117: =Таблица1[[#This Row],[Оплачено случаев]]-Таблица1[[#This Row],[План ДВН, чел.]] -> 486 | H117: =ROUND(Таблица1[[#This Row],[Оплачено случаев]]/Таблица1[[#This Row],[План ДВН, чел.]]*100,1) -> 115.5
A118: Июнь | B118: ДВН | C118: ЦРБ Бабынинского района | D118: 46 | E118: 121.42927 | F118: 373 | G118: =Таблица1[[#This Row],[Оплачено случаев]]-Таблица1[[#This Row],[План ДВН, чел.]] -> -327 | H118: =ROUND(Таблица1[[#This Row],[Оплачено случаев]]/Таблица1[[#This Row],[План ДВН, чел.]]*100,1) -> 12.3
A119: Июнь | B119: ДВН | C119: ЦРБ Боровского района | D119: 1135 | E119: 3271.73043 | F119: 1223 | G119: =Таблица1[[#This Row],[Оплачено случаев]]-Таблица1[[#This Row],[План ДВН, чел.]] -> -88 | H119: =ROUND(Таблица1[[#This Row],[Оплачено случаев]]/Таблица1[[#This Row],[План ДВН, чел.]]*100,1) -> 92.8
A120: Июнь | B120: ДВН | C120: ЦРБ Жуковского района | D120: 352 | E120: 911.23268 | F120: 477 | G120: =Таблица1[[#This Row],[Оплачено случаев]]-Таблица1[[#This Row],[План ДВН, чел.]] -> -125 | H120: =ROUND(Таблица1[[#This Row],[Оплачено случаев]]/Таблица1[[#This Row],[План ДВН, чел.]]*100,1) -> 73.8
A121: Июнь | B121: ДВН | C121: ГП "Город Кременки" | D121: 188 | E121: 488.64617 | F121: 166 | G121: =Таблица1[[#This Row],[Оплачено случаев]]-Таблица1[[#This Row],[План ДВН, чел.]] -> 22 | H121: =ROUND(Таблица1[[#This Row],[Оплачено случаев]]/Таблица1[[#This Row],[План ДВН, чел.]]*100,1) -> 113.3
A122: Июнь | B122: ДВН | C122: ЦРБ Малоярославецкого района | D122: 690 | E122: 1796.9692 | F122: 846 | G122: =Таблица1[[#This Row],[Оплачено случаев]]-Таблица1[[#This Row],[План ДВН, чел.]] -> -156 | H122: =ROUND(Таблица1[[#This Row],[Оплачено случаев]]/Таблица1[[#This Row],[План ДВН, чел.]]*100,1) -> 81.6
A123: Июнь | B123: ДВН | C123: ЦРБ Тарусского района | D123: 338 | E123: 770.57522 | F123: 149 | G123: =Таблица1[[#This Row],[Оплачено случаев]]-Таблица1[[#This Row],[План ДВН, чел.]] -> 189 | H123: =ROUND(Таблица1[[#This Row],[Оплачено случаев]]/Таблица1[[#This Row],[План ДВН, чел.]]*100,1) -> 226.8
A124: Июль | B124: ДВН | C124: ЦМБ № 1 | D124: =AN4 -> 804 | E124: =AO4 -> 2093.7323 | F124: =AP4 -> 996 | G124: =Таблица1[[#This Row],[Оплачено случаев]]-Таблица1[[#This Row],[План ДВН, чел.]] -> -192 | H124: =ROUND(Таблица1[[#This Row],[Оплачено случаев]]/Таблица1[[#This Row],[План ДВН, чел.]]*100,1) -> 80.7
A125: Июль | B125: ДВН | C125: ЦМБ № 2 | D125: 1545 | E125: 5455.31802 | F125: 1269 | G125: =Таблица1[[#This Row],[Оплачено случаев]]-Таблица1[[#This Row],[План ДВН, чел.]] -> 276 | H125: =ROUND(Таблица1[[#This Row],[Оплачено случаев]]/Таблица1[[#This Row],[План ДВН, чел.]]*100,1) -> 121.7
A126: Июль | B126: ДВН | C126: ЦМБ № 3 | D126: 552 | E126: 1386.43567 | F126: 766 | G126: =Таблица1[[#This Row],[Оплачено случаев]]-Таблица1[[#This Row],[План ДВН, чел.]] -> -214 | H126: =ROUND(Таблица1[[#This Row],[Оплачено случаев]]/Таблица1[[#This Row],[План ДВН, чел.]]*100,1) -> 72.1
A127: Июль | B127: ДВН | C127: ЦМБ № 4 | D127: 353 | E127: 925.34971 | F127: 404 | G127: =Таблица1[[#This Row],[Оплачено случаев]]-Таблица1[[#This Row],[План ДВН, чел.]] -> -51 | H127: =ROUND(Таблица1[[#This Row],[Оплачено случаев]]/Таблица1[[#This Row],[План ДВН, чел.]]*100,1) -> 87.4
A128: Июль | B128: ДВН | C128: ЦМБ № 5 | D128: 772 | E128: 2130.02555 | F128: 910 | G128: =Таблица1[[#This Row],[Оплачено случаев]]-Таблица1[[#This Row],[План ДВН, чел.]] -> -138 | H128: =ROUND(Таблица1[[#This Row],[Оплачено случаев]]/Таблица1[[#This Row],[План ДВН, чел.]]*100,1) -> 84.8
A129: Июль | B129: ДВН | C129: ЦМБ № 6 | D129: 965 | E129: 2662.58227 | F129: 1063 | G129: =Таблица1[[#This Row],[Оплачено случаев]]-Таблица1[[#This Row],[План ДВН, чел.]] -> -98 | H129: =ROUND(Таблица1[[#This Row],[Оплачено случаев]]/Таблица1[[#This Row],[План ДВН, чел.]]*100,1) -> 90.8
A130: Июль | B130: ДВН | C130: КГБ № 5 | D130: 2849 | E130: 7277.72842 | F130: 3747 | G130: =Таблица1[[#This Row],[Оплачено случаев]]-Таблица1[[#This Row],[План ДВН, чел.]] -> -898 | H130: =ROUND(Таблица1[[#This Row],[Оплачено случаев]]/Таблица1[[#This Row],[План ДВН, чел.]]*100,1) -> 76
A131: Июль | B131: ДВН | C131: КГКБ № 4 | D131: 2896 | E131: 7790.74419 | F131: 3352 | G131: =Таблица1[[#This Row],[Оплачено случаев]]-Таблица1[[#This Row],[План ДВН, чел.]] -> -456 | H131: =ROUND(Таблица1[[#This Row],[Оплачено случаев]]/Таблица1[[#This Row],[План ДВН, чел.]]*100,1) -> 86.4
A132: Июль | B132: ДВН | C132: Городская поликлиника | D132: 1255 | E132: 3271.61485 | F132: 1511 | G132: =Таблица1[[#This Row],[Оплачено случаев]]-Таблица1[[#This Row],[План ДВН, чел.]] -> -256 | H132: =ROUND(Таблица1[[#This Row],[Оплачено случаев]]/Таблица1[[#This Row],[План ДВН, чел.]]*100,1) -> 83.1
A133: Июль | B133: ДВН | C133: МСЧ № 1 г. Калуги | D133: 154 | E133: 334.51663 | F133: 106 | G133: =Таблица1[[#This Row],[Оплачено случаев]]-Таблица1[[#This Row],[План ДВН, чел.]] -> 48 | H133: =ROUND(Таблица1[[#This Row],[Оплачено случаев]]/Таблица1[[#This Row],[План ДВН, чел.]]*100,1) -> 145.3
A134: Июль | B134: ДВН | C134: МСЧ № 2 г. Калуги | D134: 0 | E134: 0 | F134: 12 | G134: =Таблица1[[#This Row],[Оплачено случаев]]-Таблица1[[#This Row],[План ДВН, чел.]] -> -12 | H134: =ROUND(Таблица1[[#This Row],[Оплачено случаев]]/Таблица1[[#This Row],[План ДВН, чел.]]*100,1) -> 0
A135: Июль | B135: ДВН | C135: МСЧ МВД | D135: 0 | E135: 0 | F135: 0 | G135: =Таблица1[[#This Row],[Оплачено случаев]]-Таблица1[[#This Row],[План ДВН, чел.]] -> 0 | H135: =ROUND(Таблица1[[#This Row],[Оплачено случаев]]/Таблица1[[#This Row],[План ДВН, чел.]]*100,1) -> 
A136: Июль | B136: ДВН | C136: ЧУЗ "Больница "РЖД - Медицина" | D136: 79 | E136: 207.01073 | F136: 124 | G136: =Таблица1[[#This Row],[Оплачено случаев]]-Таблица1[[#This Row],[План ДВН, чел.]] -> -45 | H136: =ROUND(Таблица1[[#This Row],[Оплачено случаев]]/Таблица1[[#This Row],[План ДВН, чел.]]*100,1) -> 63.7
A137: Июль | B137: ДВН | C137: КБ № 8 ФМБА | D137: 4037 | E137: 10147.49747 | F137: 3137 | G137: =Таблица1[[#This Row],[Оплачено случаев]]-Таблица1[[#This Row],[План ДВН, чел.]] -> 900 | H137: =ROUND(Таблица1[[#This Row],[Оплачено случаев]]/Таблица1[[#This Row],[План ДВН, чел.]]*100,1) -> 128.7
A138: Июль | B138: ДВН | C138: ЦРБ Бабынинского района | D138: 511 | E138: 1318.55698 | F138: 373 | G138: =Таблица1[[#This Row],[Оплачено случаев]]-Таблица1[[#This Row],[План ДВН, чел.]] -> 138 | H138: =ROUND(Таблица1[[#This Row],[Оплачено случаев]]/Таблица1[[#This Row],[План ДВН, чел.]]*100,1) -> 137
A139: Июль | B139: ДВН | C139: ЦРБ Боровского района | D139: 826 | E139: 2440.49502 | F139: 955 | G139: =Таблица1[[#This Row],[Оплачено случаев]]-Таблица1[[#This Row],[План ДВН, чел.]] -> -129 | H139: =ROUND(Таблица1[[#This Row],[Оплачено случаев]]/Таблица1[[#This Row],[План ДВН, чел.]]*100,1) -> 86.5
A140: Июль | B140: ДВН | C140: ЦРБ Жуковского района | D140: 471 | E140: 1283.57423 | F140: 477 | G140: =Таблица1[[#This Row],[Оплачено случаев]]-Таблица1[[#This Row],[План ДВН, чел.]] -> -6 | H140: =ROUND(Таблица1[[#This Row],[Оплачено случаев]]/Таблица1[[#This Row],[План ДВН, чел.]]*100,1) -> 98.7
A141: Июль | B141: ДВН | C141: ГП "Город Кременки" | D141: 163 | E141: 402.71149 | F141: 166 | G141: =Таблица1[[#This Row],[Оплачено случаев]]-Таблица1[[#This Row],[План ДВН, чел.]] -> -3 | H141: =ROUND(Таблица1[[#This Row],[Оплачено случаев]]/Таблица1[[#This Row],[План ДВН, чел.]]*100,1) -> 98.2
A142: Июль | B142: ДВН | C142: ЦРБ Малоярославецкого района | D142: 491 | E142: 1252.18213 | F142: 846 | G142: =Таблица1[[#This Row],[Оплачено случаев]]-Таблица1[[#This Row],[План ДВН, чел.]] -> -355 | H142: =ROUND(Таблица1[[#This Row],[Оплачено случаев]]/Таблица1[[#This Row],[План ДВН, чел.]]*100,1) -> 58
A143: Июль | B143: ДВН | C143: ЦРБ Тарусского района | D143: 86 | E143: 208.52656 | F143: 134 | G143: =Таблица1[[#This Row],[Оплачено случаев]]-Таблица1[[#This Row],[План ДВН, чел.]] -> -48 | H143: =ROUND(Таблица1[[#This Row],[Оплачено случаев]]/Таблица1[[#This Row],[План ДВН, чел.]]*100,1) -> 64.2
A144: Август | B144: ДВН | C144: ЦМБ № 1 | D144: =AS4 -> 587 | E144: =AT4 -> 1501.08776 | F144: =AU4 -> 1003 | G144: =Таблица1[[#This Row],[Оплачено случаев]]-Таблица1[[#This Row],[План ДВН, чел.]] -> -416 | H144: =ROUND(Таблица1[[#This Row],[Оплачено случаев]]/Таблица1[[#This Row],[План ДВН, чел.]]*100,1) -> 58.5
A145: Август | B145: ДВН | C145: ЦМБ № 2 | D145: 676 | E145: 1898.97368 | F145: 1269 | G145: =Таблица1[[#This Row],[Оплачено случаев]]-Таблица1[[#This Row],[План ДВН, чел.]] -> -593 | H145: =ROUND(Таблица1[[#This Row],[Оплачено случаев]]/Таблица1[[#This Row],[План ДВН, чел.]]*100,1) -> 53.3
A146: Август | B146: ДВН | C146: ЦМБ № 3 | D146: 509 | E146: 1289.44142 | F146: 766 | G146: =Таблица1[[#This Row],[Оплачено случаев]]-Таблица1[[#This Row],[План ДВН, чел.]] -> -257 | H146: =ROUND(Таблица1[[#This Row],[Оплачено случаев]]/Таблица1[[#This Row],[План ДВН, чел.]]*100,1) -> 66.4
A147: Август | B147: ДВН | C147: ЦМБ № 4 | D147: 273 | E147: 724.8191 | F147: 404 | G147: =Таблица1[[#This Row],[Оплачено случаев]]-Таблица1[[#This Row],[План ДВН, чел.]] -> -131 | H147: =ROUND(Таблица1[[#This Row],[Оплачено случаев]]/Таблица1[[#This Row],[План ДВН, чел.]]*100,1) -> 67.6
A148: Август | B148: ДВН | C148: ЦМБ № 5 | D148: 588 | E148: 1570.10006 | F148: 925 | G148: =Таблица1[[#This Row],[Оплачено случаев]]-Таблица1[[#This Row],[План ДВН, чел.]] -> -337 | H148: =ROUND(Таблица1[[#This Row],[Оплачено случаев]]/Таблица1[[#This Row],[План ДВН, чел.]]*100,1) -> 63.6
A149: Август | B149: ДВН | C149: ЦМБ № 6 | D149: 737 | E149: 2085.06244 | F149: 1574 | G149: =Таблица1[[#This Row],[Оплачено случаев]]-Таблица1[[#This Row],[План ДВН, чел.]] -> -837 | H149: =ROUND(Таблица1[[#This Row],[Оплачено случаев]]/Таблица1[[#This Row],[План ДВН, чел.]]*100,1) -> 46.8
A150: Август | B150: ДВН | C150: КГБ № 5 | D150: 2470 | E150: 6321.53058 | F150: 3747 | G150: =Таблица1[[#This Row],[Оплачено случаев]]-Таблица1[[#This Row],[План ДВН, чел.]] -> -1277 | H150: =ROUND(Таблица1[[#This Row],[Оплачено случаев]]/Таблица1[[#This Row],[План ДВН, чел.]]*100,1) -> 65.9
A151: Август | B151: ДВН | C151: КГКБ № 4 | D151: 3087 | E151: 8244.24 | F151: 3352 | G151: =Таблица1[[#This Row],[Оплачено случаев]]-Таблица1[[#This Row],[План ДВН, чел.]] -> -265 | H151: =ROUND(Таблица1[[#This Row],[Оплачено случаев]]/Таблица1[[#This Row],[План ДВН, чел.]]*100,1) -> 92.1
A152: Август | B152: ДВН | C152: Городская поликлиника | D152: 828 | E152: 2135.3244 | F152: 1781 | G152: =Таблица1[[#This Row],[Оплачено случаев]]-Таблица1[[#This Row],[План ДВН, чел.]] -> -953 | H152: =ROUND(Таблица1[[#This Row],[Оплачено случаев]]/Таблица1[[#This Row],[План ДВН, чел.]]*100,1) -> 46.5
A153: Август | B153: ДВН | C153: МСЧ № 1 г. Калуги | D153: 42 | E153: 97.52629 | F153: 106 | G153: =Таблица1[[#This Row],[Оплачено случаев]]-Таблица1[[#This Row],[План ДВН, чел.]] -> -64 | H153: =ROUND(Таблица1[[#This Row],[Оплачено случаев]]/Таблица1[[#This Row],[План ДВН, чел.]]*100,1) -> 39.6
A154: Август | B154: ДВН | C154: МСЧ № 2 г. Калуги | D154: 2 | E154: 6.26767 | F154: 12 | G154: =Таблица1[[#This Row],[Оплачено случаев]]-Таблица1[[#This Row],[План ДВН, чел.]] -> -10 | H154: =ROUND(Таблица1[[#This Row],[Оплачено случаев]]/Таблица1[[#This Row],[План ДВН, чел.]]*100,1) -> 16.7
A155: Август | B155: ДВН | C155: МСЧ МВД | D155: 0 | E155: 0 | F155: 0 | G155: =Таблица1[[#This Row],[Оплачено случаев]]-Таблица1[[#This Row],[План ДВН, чел.]] -> 0 | H155: =ROUND(Таблица1[[#This Row],[Оплачено случаев]]/Таблица1[[#This Row],[План ДВН, чел.]]*100,1) -> 
A156: Август | B156: ДВН | C156: ЧУЗ "Больница "РЖД - Медицина" | D156: 151 | E156: 390.39713 | F156: 140 | G156: =Таблица1[[#This Row],[Оплачено случаев]]-Таблица1[[#This Row],[План ДВН, чел.]] -> 11 | H156: =ROUND(Таблица1[[#This Row],[Оплачено случаев]]/Таблица1[[#This Row],[План ДВН, чел.]]*100,1) -> 107.9
A157: Август | B157: ДВН | C157: КБ № 8 ФМБА | D157: 4061 | E157: 10240.5841 | F157: 3137 | G157: =Таблица1[[#This Row],[Оплачено случаев]]-Таблица1[[#This Row],[План ДВН, чел.]] -> 924 | H157: =ROUND(Таблица1[[#This Row],[Оплачено случаев]]/Таблица1[[#This Row],[План ДВН, чел.]]*100,1) -> 129.5
A158: Август | B158: ДВН | C158: ЦРБ Бабынинского района | D158: 318 | E158: 803.87162 | F158: 373 | G158: =Таблица1[[#This Row],[Оплачено случаев]]-Таблица1[[#This Row],[План ДВН, чел.]] -> -55 | H158: =ROUND(Таблица1[[#This Row],[Оплачено случаев]]/Таблица1[[#This Row],[План ДВН, чел.]]*100,1) -> 85.3
A159: Август | B159: ДВН | C159: ЦРБ Боровского района | D159: 561 | E159: 1631.16917 | F159: 955 | G159: =Таблица1[[#This Row],[Оплачено случаев]]-Таблица1[[#This Row],[План ДВН, чел.]] -> -394 | H159: =ROUND(Таблица1[[#This Row],[Оплачено случаев]]/Таблица1[[#This Row],[План ДВН, чел.]]*100,1) -> 58.7
A160: Август | B160: ДВН | C160: ЦРБ Жуковского района | D160: 389 | E160: 1022.2596 | F160: 477 | G160: =Таблица1[[#This Row],[Оплачено случаев]]-Таблица1[[#This Row],[План ДВН, чел.]] -> -88 | H160: =ROUND(Таблица1[[#This Row],[Оплачено случаев]]/Таблица1[[#This Row],[План ДВН, чел.]]*100,1) -> 81.6
A161: Август | B161: ДВН | C161: ГП "Город Кременки" | D161: 112 | E161: 306.73998 | F161: 166 | G161: =Таблица1[[#This Row],[Оплачено случаев]]-Таблица1[[#This Row],[План ДВН, чел.]] -> -54 | H161: =ROUND(Таблица1[[#This Row],[Оплачено случаев]]/Таблица1[[#This Row],[План ДВН, чел.]]*100,1) -> 67.5
A162: Август | B162: ДВН | C162: ЦРБ Малоярославецкого района | D162: 647 | E162: 1701.63683 | F162: 846 | G162: =Таблица1[[#This Row],[Оплачено случаев]]-Таблица1[[#This Row],[План ДВН, чел.]] -> -199 | H162: =ROUND(Таблица1[[#This Row],[Оплачено случаев]]/Таблица1[[#This Row],[План ДВН, чел.]]*100,1) -> 76.5
A163: Август | B163: ДВН | C163: ЦРБ Тарусского района | D163: 135 | E163: 316.74126 | F163: 128 | G163: =Таблица1[[#This Row],[Оплачено случаев]]-Таблица1[[#This Row],[План ДВН, чел.]] -> 7 | H163: =ROUND(Таблица1[[#This Row],[Оплачено случаев]]/Таблица1[[#This Row],[План ДВН, чел.]]*100,1) -> 105.5
A164: Сентябрь | B164: ДВН | C164: ЦМБ № 1 | D164: =AX4 -> 590 | E164: =AY4 -> 1526.81077 | F164: =AZ4 -> 980 | G164: =Таблица1[[#This Row],[Оплачено случаев]]-Таблица1[[#This Row],[План ДВН, чел.]] -> -390 | H164: =ROUND(Таблица1[[#This Row],[Оплачено случаев]]/Таблица1[[#This Row],[План ДВН, чел.]]*100,1) -> 60.2
A165: Сентябрь | B165: ДВН | C165: ЦМБ № 2 | D165: 1054 | E165: 3466.40765 | F165: 1354 | G165: =Таблица1[[#This Row],[Оплачено случаев]]-Таблица1[[#This Row],[План ДВН, чел.]] -> -300 | H165: =ROUND(Таблица1[[#This Row],[Оплачено случаев]]/Таблица1[[#This Row],[План ДВН, чел.]]*100,1) -> 77.8
A166: Сентябрь | B166: ДВН | C166: ЦМБ № 3 | D166: 395 | E166: 977.7623 | F166: 766 | G166: =Таблица1[[#This Row],[Оплачено случаев]]-Таблица1[[#This Row],[План ДВН, чел.]] -> -371 | H166: =ROUND(Таблица1[[#This Row],[Оплачено случаев]]/Таблица1[[#This Row],[План ДВН, чел.]]*100,1) -> 51.6
A167: Сентябрь | B167: ДВН | C167: ЦМБ № 4 | D167: 234 | E167: 598.00268 | F167: 414 | G167: =Таблица1[[#This Row],[Оплачено случаев]]-Таблица1[[#This Row],[План ДВН, чел.]] -> -180 | H167: =ROUND(Таблица1[[#This Row],[Оплачено случаев]]/Таблица1[[#This Row],[План ДВН, чел.]]*100,1) -> 56.5
A168: Сентябрь | B168: ДВН | C168: ЦМБ № 5 | D168: 336 | E168: 897.48668 | F168: 981 | G168: =Таблица1[[#This Row],[Оплачено случаев]]-Таблица1[[#This Row],[План ДВН, чел.]] -> -645 | H168: =ROUND(Таблица1[[#This Row],[Оплачено случаев]]/Таблица1[[#This Row],[План ДВН, чел.]]*100,1) -> 34.3
A169: Сентябрь | B169: ДВН | C169: ЦМБ № 6 | D169: 647 | E169: 1844.16763 | F169: 1849 | G169: =Таблица1[[#This Row],[Оплачено случаев]]-Таблица1[[#This Row],[План ДВН, чел.]] -> -1202 | H169: =ROUND(Таблица1[[#This Row],[Оплачено случаев]]/Таблица1[[#This Row],[План ДВН, чел.]]*100,1) -> 35
A170: Сентябрь | B170: ДВН | C170: КГБ № 5 | D170: 2860 | E170: 7098.45161 | F170: 3747 | G170: =Таблица1[[#This Row],[Оплачено случаев]]-Таблица1[[#This Row],[План ДВН, чел.]] -> -887 | H170: =ROUND(Таблица1[[#This Row],[Оплачено случаев]]/Таблица1[[#This Row],[План ДВН, чел.]]*100,1) -> 76.3
A171: Сентябрь | B171: ДВН | C171: КГКБ № 4 | D171: 2631 | E171: 7034.49772 | F171: 3352 | G171: =Таблица1[[#This Row],[Оплачено случаев]]-Таблица1[[#This Row],[План ДВН, чел.]] -> -721 | H171: =ROUND(Таблица1[[#This Row],[Оплачено случаев]]/Таблица1[[#This Row],[План ДВН, чел.]]*100,1) -> 78.5
A172: Сентябрь | B172: ДВН | C172: Городская поликлиника | D172: 773 | E172: 2012.90865 | F172: 1781 | G172: =Таблица1[[#This Row],[Оплачено случаев]]-Таблица1[[#This Row],[План ДВН, чел.]] -> -1008 | H172: =ROUND(Таблица1[[#This Row],[Оплачено случаев]]/Таблица1[[#This Row],[План ДВН, чел.]]*100,1) -> 43.4
A173: Сентябрь | B173: ДВН | C173: МСЧ № 1 г. Калуги | D173: 2 | E173: 3.78921 | F173: 106 | G173: =Таблица1[[#This Row],[Оплачено случаев]]-Таблица1[[#This Row],[План ДВН, чел.]] -> -104 | H173: =ROUND(Таблица1[[#This Row],[Оплачено случаев]]/Таблица1[[#This Row],[План ДВН, чел.]]*100,1) -> 1.9
A174: Сентябрь | B174: ДВН | C174: МСЧ № 2 г. Калуги | D174: 16 | E174: 36.5493 | F174: 12 | G174: =Таблица1[[#This Row],[Оплачено случаев]]-Таблица1[[#This Row],[План ДВН, чел.]] -> 4 | H174: =ROUND(Таблица1[[#This Row],[Оплачено случаев]]/Таблица1[[#This Row],[План ДВН, чел.]]*100,1) -> 133.3
A175: Сентябрь | B175: ДВН | C175: МСЧ МВД | D175: 0 | E175: 0 | F175: 0 | G175: =Таблица1[[#This Row],[Оплачено случаев]]-Таблица1[[#This Row],[План ДВН, чел.]] -> 0 | H175: =ROUND(Таблица1[[#This Row],[Оплачено случаев]]/Таблица1[[#This Row],[План ДВН, чел.]]*100,1) -> 
A176: Сентябрь | B176: ДВН | C176: ЧУЗ "Больница "РЖД - Медицина" | D176: 148 | E176: 368.97095 | F176: 120 | G176: =Таблица1[[#This Row],[Оплачено случаев]]-Таблица1[[#This Row],[План ДВН, чел.]] -> 28 | H176: =ROUND(Таблица1[[#This Row],[Оплачено случаев]]/Таблица1[[#This Row],[План ДВН, чел.]]*100,1) -> 123.3
A177: Сентябрь | B177: ДВН | C177: КБ № 8 ФМБА | D177: 4836 | E177: 11824.70349 | F177: 3137 | G177: =Таблица1[[#This Row],[Оплачено случаев]]-Таблица1[[#This Row],[План ДВН, чел.]] -> 1699 | H177: =ROUND(Таблица1[[#This Row],[Оплачено случаев]]/Таблица1[[#This Row],[План ДВН, чел.]]*100,1) -> 154.2
A178: Сентябрь | B178: ДВН | C178: ЦРБ Бабынинского района | D178: 399 | E178: 1050.05839 | F178: 373 | G178: =Таблица1[[#This Row],[Оплачено случаев]]-Таблица1[[#This Row],[План ДВН, чел.]] -> 26 | H178: =ROUND(Таблица1[[#This Row],[Оплачено случаев]]/Таблица1[[#This Row],[План ДВН, чел.]]*100,1) -> 107
A179: Сентябрь | B179: ДВН | C179: ЦРБ Боровского района | D179: 938 | E179: 2691.29193 | F179: 1477 | G179: =Таблица1[[#This Row],[Оплачено случаев]]-Таблица1[[#This Row],[План ДВН, чел.]] -> -539 | H179: =ROUND(Таблица1[[#This Row],[Оплачено случаев]]/Таблица1[[#This Row],[План ДВН, чел.]]*100,1) -> 63.5
A180: Сентябрь | B180: ДВН | C180: ЦРБ Жуковского района | D180: 336 | E180: 924.239 | F180: 477 | G180: =Таблица1[[#This Row],[Оплачено случаев]]-Таблица1[[#This Row],[План ДВН, чел.]] -> -141 | H180: =ROUND(Таблица1[[#This Row],[Оплачено случаев]]/Таблица1[[#This Row],[План ДВН, чел.]]*100,1) -> 70.4
A181: Сентябрь | B181: ДВН | C181: ГП "Город Кременки" | D181: 124 | E181: 329.41602 | F181: 166 | G181: =Таблица1[[#This Row],[Оплачено случаев]]-Таблица1[[#This Row],[План ДВН, чел.]] -> -42 | H181: =ROUND(Таблица1[[#This Row],[Оплачено случаев]]/Таблица1[[#This Row],[План ДВН, чел.]]*100,1) -> 74.7
A182: Сентябрь | B182: ДВН | C182: ЦРБ Малоярославецкого района | D182: 725 | E182: 1845.28314 | F182: 846 | G182: =Таблица1[[#This Row],[Оплачено случаев]]-Таблица1[[#This Row],[План ДВН, чел.]] -> -121 | H182: =ROUND(Таблица1[[#This Row],[Оплачено случаев]]/Таблица1[[#This Row],[План ДВН, чел.]]*100,1) -> 85.7
A183: Сентябрь | B183: ДВН | C183: ЦРБ Тарусского района | D183: 147 | E183: 397.44431 | F183: 233 | G183: =Таблица1[[#This Row],[Оплачено случаев]]-Таблица1[[#This Row],[План ДВН, чел.]] -> -86 | H183: =ROUND(Таблица1[[#This Row],[Оплачено случаев]]/Таблица1[[#This Row],[План ДВН, чел.]]*100,1) -> 63.1
A184: Октябрь | B184: ДВН | C184: ЦМБ № 1 | D184: =BC4 -> 732 | E184: =BD4 -> 1822.26616 | F184: =BE4 -> 1064 | G184: =Таблица1[[#This Row],[Оплачено случаев]]-Таблица1[[#This Row],[План ДВН, чел.]] -> -332 | H184: =ROUND(Таблица1[[#This Row],[Оплачено случаев]]/Таблица1[[#This Row],[План ДВН, чел.]]*100,1) -> 68.8
A185: Октябрь | B185: ДВН | C185: ЦМБ № 2 | D185: 824 | E185: 2635.45584 | F185: 1354 | G185: =Таблица1[[#This Row],[Оплачено случаев]]-Таблица1[[#This Row],[План ДВН, чел.]] -> -530 | H185: =ROUND(Таблица1[[#This Row],[Оплачено случаев]]/Таблица1[[#This Row],[План ДВН, чел.]]*100,1) -> 60.9
A186: Октябрь | B186: ДВН | C186: ЦМБ № 3 | D186: 351 | E186: 870.83381 | F186: 766 | G186: =Таблица1[[#This Row],[Оплачено случаев]]-Таблица1[[#This Row],[План ДВН, чел.]] -> -415 | H186: =ROUND(Таблица1[[#This Row],[Оплачено случаев]]/Таблица1[[#This Row],[План ДВН, чел.]]*100,1) -> 45.8
A187: Октябрь | B187: ДВН | C187: ЦМБ № 4 | D187: 298 | E187: 742.26472 | F187: 408 | G187: =Таблица1[[#This Row],[Оплачено случаев]]-Таблица1[[#This Row],[План ДВН, чел.]] -> -110 | H187: =ROUND(Таблица1[[#This Row],[Оплачено случаев]]/Таблица1[[#This Row],[План ДВН, чел.]]*100,1) -> 73
A188: Октябрь | B188: ДВН | C188: ЦМБ № 5 | D188: 475 | E188: 1261.71696 | F188: 985 | G188: =Таблица1[[#This Row],[Оплачено случаев]]-Таблица1[[#This Row],[План ДВН, чел.]] -> -510 | H188: =ROUND(Таблица1[[#This Row],[Оплачено случаев]]/Таблица1[[#This Row],[План ДВН, чел.]]*100,1) -> 48.2
A189: Октябрь | B189: ДВН | C189: ЦМБ № 6 | D189: 956 | E189: 2666.17489 | F189: 1424 | G189: =Таблица1[[#This Row],[Оплачено случаев]]-Таблица1[[#This Row],[План ДВН, чел.]] -> -468 | H189: =ROUND(Таблица1[[#This Row],[Оплачено случаев]]/Таблица1[[#This Row],[План ДВН, чел.]]*100,1) -> 67.1
A190: Октябрь | B190: ДВН | C190: КГБ № 5 | D190: 667 | E190: 1614.46403 | F190: 3747 | G190: =Таблица1[[#This Row],[Оплачено случаев]]-Таблица1[[#This Row],[План ДВН, чел.]] -> -3080 | H190: =ROUND(Таблица1[[#This Row],[Оплачено случаев]]/Таблица1[[#This Row],[План ДВН, чел.]]*100,1) -> 17.8
A191: Октябрь | B191: ДВН | C191: КГКБ № 4 | D191: 4090 | E191: 11002.43727 | F191: 3352 | G191: =Таблица1[[#This Row],[Оплачено случаев]]-Таблица1[[#This Row],[План ДВН, чел.]] -> 738 | H191: =ROUND(Таблица1[[#This Row],[Оплачено случаев]]/Таблица1[[#This Row],[План ДВН, чел.]]*100,1) -> 122
A192: Октябрь | B192: ДВН | C192: Городская поликлиника | D192: 1196 | E192: 3014.63691 | F192: 1785 | G192: =Таблица1[[#This Row],[Оплачено случаев]]-Таблица1[[#This Row],[План ДВН, чел.]] -> -589 | H192: =ROUND(Таблица1[[#This Row],[Оплачено случаев]]/Таблица1[[#This Row],[План ДВН, чел.]]*100,1) -> 67
A193: Октябрь | B193: ДВН | C193: МСЧ № 1 г. Калуги | D193: 32 | E193: 65.04073 | F193: 106 | G193: =Таблица1[[#This Row],[Оплачено случаев]]-Таблица1[[#This Row],[План ДВН, чел.]] -> -74 | H193: =ROUND(Таблица1[[#This Row],[Оплачено случаев]]/Таблица1[[#This Row],[План ДВН, чел.]]*100,1) -> 30.2
A194: Октябрь | B194: ДВН | C194: МСЧ № 2 г. Калуги | D194: 11 | E194: 24.54782 | F194: 12 | G194: =Таблица1[[#This Row],[Оплачено случаев]]-Таблица1[[#This Row],[План ДВН, чел.]] -> -1 | H194: =ROUND(Таблица1[[#This Row],[Оплачено случаев]]/Таблица1[[#This Row],[План ДВН, чел.]]*100,1) -> 91.7
A195: Октябрь | B195: ДВН | C195: МСЧ МВД | D195: 0 | E195: 0 | F195: 0 | G195: =Таблица1[[#This Row],[Оплачено случаев]]-Таблица1[[#This Row],[План ДВН, чел.]] -> 0 | H195: =ROUND(Таблица1[[#This Row],[Оплачено случаев]]/Таблица1[[#This Row],[План ДВН, чел.]]*100,1) -> 
A196: Октябрь | B196: ДВН | C196: ЧУЗ "Больница "РЖД - Медицина" | D196: 497 | E196: 1249.30221 | F196: 130 | G196: =Таблица1[[#This Row],[Оплачено случаев]]-Таблица1[[#This Row],[План ДВН, чел.]] -> 367 | H196: =ROUND(Таблица1[[#This Row],[Оплачено случаев]]/Таблица1[[#This Row],[План ДВН, чел.]]*100,1) -> 382.3
A197: Октябрь | B197: ДВН | C197: КБ № 8 ФМБА | D197: 5062 | E197: 12062.70909 | F197: 3137 | G197: =Таблица1[[#This Row],[Оплачено случаев]]-Таблица1[[#This Row],[План ДВН, чел.]] -> 1925 | H197: =ROUND(Таблица1[[#This Row],[Оплачено случаев]]/Таблица1[[#This Row],[План ДВН, чел.]]*100,1) -> 161.4
A198: Октябрь | B198: ДВН | C198: ЦРБ Бабынинского района | D198: 39 | E198: 103.76349 | F198: 373 | G198: =Таблица1[[#This Row],[Оплачено случаев]]-Таблица1[[#This Row],[План ДВН, чел.]] -> -334 | H198: =ROUND(Таблица1[[#This Row],[Оплачено случаев]]/Таблица1[[#This Row],[План ДВН, чел.]]*100,1) -> 10.5
A199: Октябрь | B199: ДВН | C199: ЦРБ Боровского района | D199: 721 | E199: 1946.10069 | F199: 1477 | G199: =Таблица1[[#This Row],[Оплачено случаев]]-Таблица1[[#This Row],[План ДВН, чел.]] -> -756 | H199: =ROUND(Таблица1[[#This Row],[Оплачено случаев]]/Таблица1[[#This Row],[План ДВН, чел.]]*100,1) -> 48.8
A200: Октябрь | B200: ДВН | C200: ЦРБ Жуковского района | D200: 580 | E200: 1630.30741 | F200: 477 | G200: =Таблица1[[#This Row],[Оплачено случаев]]-Таблица1[[#This Row],[План ДВН, чел.]] -> 103 | H200: =ROUND(Таблица1[[#This Row],[Оплачено случаев]]/Таблица1[[#This Row],[План ДВН, чел.]]*100,1) -> 121.6
... 43 more rows

Sheet Все МО (hidden)
A1: Месяц | B1: Ноябрь
A3: Названия строк | B3: Оплачено случаев | C3: План ДВН, чел.
A4: МСЧ МВД | B4: 0 | C4: 0
A5: МСЧ № 2 г. Калуги | B5: 10 | C5: 13
A6: МСЧ № 1 г. Калуги | B6: 13 | C6: 106
A7: ГП "Город Кременки" | B7: 150 | C7: 167
A8: ЦРБ Тарусского района | B8: 198 | C8: 265
A9: ЦРБ Бабынинского района | B9: 274 | C9: 374
A10: ЦМБ № 4 | B10: 380 | C10: 389
A11: ЦМБ № 5 | B11: 427 | C11: 937
A12: ЧУЗ "Больница "РЖД - Медицина" | B12: 694 | C12: 115
A13: ЦМБ № 1 | B13: 997 | C13: 1100
A14: Городская поликлиника | B14: 1210 | C14: 1779
A15: ЦМБ № 2 | B15: 1647 | C15: 1139
A16: ЦМБ № 6 | B16: 1667 | C16: 1431
A17: ЦРБ Боровского района | B17: 1834 | C17: 1216
A18: ЦРБ Жуковского района | B18: 2117 | C18: 477
A19: ЦМБ № 3 | B19: 2353 | C19: 745
A20: ЦРБ Малоярославецкого района | B20: 2371 | C20: 886
A21: КГКБ № 4 | B21: 3718 | C21: 3692
A22: КБ № 8 ФМБА | B22: 3895 | C22: 4436
A23: КГБ № 5 | B23: 4604 | C23: 4909
A24: Общий итог | B24: 28559 | C24: 24176

Sheet 10 лучших (hidden)
A1: Месяц | B1: Ноябрь
A3: Названия строк | B3: % выполнения
A4: КГБ № 5 | B4: 93.8
A5: ЦМБ № 4 | B5: 97.7
A6: КГКБ № 4 | B6: 100.7
A7: ЦМБ № 6 | B7: 116.5
A8: ЦМБ № 2 | B8: 144.6
A9: ЦРБ Боровского района | B9: 150.8
A10: ЦРБ Малоярославецкого района | B10: 267.6
A11: ЦМБ № 3 | B11: 315.8
A12: ЦРБ Жуковского района | B12: 443.8
A13: ЧУЗ "Больница "РЖД - Медицина" | B13: 603.5
A14: Общий итог | B14: 233.48

Sheet 10 худших (hidden)
A1: Месяц | B1: Ноябрь
A3: Названия строк | B3: % выполнения
A4: МСЧ № 1 г. Калуги | B4: 12.3
A5: ЦМБ № 5 | B5: 45.6
A6: Городская поликлиника | B6: 68
A7: ЦРБ Бабынинского района | B7: 73.3
A8: ЦРБ Тарусского района | B8: 74.7
A9: МСЧ № 2 г. Калуги | B9: 76.9
A10: КБ № 8 ФМБА | B10: 87.8
A11: ГП "Город Кременки" | B11: 89.8
A12: ЦМБ № 1 | B12: 90.6
A13: КГБ № 5 | B13: 93.8
A14: Общий итог | B14: 71.28

Sheet Помесячно по МО (hidden)
A1: Выполнение ДВН
A3: Названия строк | B3: Оплачено случаев | C3: План ДВН, чел. | D3: Отклонение
A4: Январь | B4: 1449 | C4: 1484 | D4: -35
A5: Февраль | B5: 1736 | C5: 1916 | D5: -180
A6: Март | B6: 1708 | C6: 1916 | D6: -208
A7: Апрель | B7: 1469 | C7: 1781 | D7: -312
A8: Май | B8: 1404 | C8: 1511 | D8: -107
A9: Июнь | B9: 1195 | C9: 1511 | D9: -316
A10: Июль | B10: 1255 | C10: 1511 | D10: -256
A11: Август | B11: 828 | C11: 1781 | D11: -953
A12: Сентябрь | B12: 773 | C12: 1781 | D12: -1008
A13: Октябрь | B13: 1196 | C13: 1785 | D13: -589
A14: Ноябрь | B14: 1210 | C14: 1779 | D14: -569
A15: Декабрь | B15: 1465 | C15: 0 | D15: 1465
A16: Общий итог | B16: 15688 | C16: 18756 | D16: -3068

Sheet Дашборд ДВН
A2: ДИСПАНСЕРИЗАЦИЯ ВЗРОСЛОГО НАСЕЛЕНИЯ В 2023 ГОДУ
